Workbook

Sheet Лист1 (2)
M2: все расчёты на 1 л | AI2: t | AJ2: p
M3: целевая температура | N3: 25 | AI3: 4 | AJ3: 1
M4: горячая дороже холодной в, раз | N4: 4 | AI4: 5 | AJ4: 0.99995
AI5: 6 | AJ5: 0.9999
B6: 75 | C6: 74 | D6: 73 | E6: 72 | F6: 71 | G6: 70 | H6: 69 | I6: 68 | J6: 67 | K6: 66 | L6: 65 | M6: 64 | N6: 63 | O6: 62 | P6: 61 | Q6: 60 | R6: 59 | S6: 58 | T6: 57 | U6: 56 | V6: 55 | W6: 54 | X6: 53 | Y6: 52 | Z6: 51 | AA6: 50 | AB6: 49 | AC6: 48 | AI6: 7 | AJ6: 0.9999
A7: 20 | B7: =LOOKUP($N$3,температуры,плотности)/(1+(B$6-$N$3)/($N$3-$A7))/LOOKUP(B$6,температуры,плотности)*$N$4+LOOKUP($N$3,температуры,плотности)*(1-1/(1+(B$6-$N$3)/($N$3-$A7)))/LOOKUP($A7,температуры,плотности) -> 1.279980004 | C7: =LOOKUP($N$3,температуры,плотности)/(1+(C$6-$N$3)/($N$3-$A7))/LOOKUP(C$6,температуры,плотности)*$N$4+LOOKUP($N$3,температуры,плотности)*(1-1/(1+(C$6-$N$3)/($N$3-$A7)))/LOOKUP($A7,температуры,плотности) -> 1.284953126 | D7: =LOOKUP($N$3,температуры,плотности)/(1+(D$6-$N$3)/($N$3-$A7))/LOOKUP(D$6,температуры,плотности)*$N$4+LOOKUP($N$3,температуры,плотности)*(1-1/(1+(D$6-$N$3)/($N$3-$A7)))/LOOKUP($A7,температуры,плотности) -> 1.290114206 | E7: =LOOKUP($N$3,температуры,плотности)/(1+(E$6-$N$3)/($N$3-$A7))/LOOKUP(E$6,температуры,плотности)*$N$4+LOOKUP($N$3,температуры,плотности)*(1-1/(1+(E$6-$N$3)/($N$3-$A7)))/LOOKUP($A7,температуры,плотности) -> 1.295474086 | F7: =LOOKUP($N$3,температуры,плотности)/(1+(F$6-$N$3)/($N$3-$A7))/LOOKUP(F$6,температуры,плотности)*$N$4+LOOKUP($N$3,температуры,плотности)*(1-1/(1+(F$6-$N$3)/($N$3-$A7)))/LOOKUP($A7,температуры,плотности) -> 1.301044459 | G7: =LOOKUP($N$3,температуры,плотности)/(1+(G$6-$N$3)/($N$3-$A7))/LOOKUP(G$6,температуры,плотности)*$N$4+LOOKUP($N$3,температуры,плотности)*(1-1/(1+(G$6-$N$3)/($N$3-$A7)))/LOOKUP($A7,температуры,плотности) -> 1.306837955 | H7: =LOOKUP($N$3,температуры,плотности)/(1+(H$6-$N$3)/($N$3-$A7))/LOOKUP(H$6,температуры,плотности)*$N$4+LOOKUP($N$3,температуры,плотности)*(1-1/(1+(H$6-$N$3)/($N$3-$A7)))/LOOKUP($A7,температуры,плотности) -> 1.312889491 | I7: =LOOKUP($N$3,температуры,плотности)/(1+(I$6-$N$3)/($N$3-$A7))/LOOKUP(I$6,температуры,плотности)*$N$4+LOOKUP($N$3,температуры,плотности)*(1-1/(1+(I$6-$N$3)/($N$3-$A7)))/LOOKUP($A7,температуры,плотности) -> 1.319193442 | J7: =LOOKUP($N$3,температуры,плотности)/(1+(J$6-$N$3)/($N$3-$A7))/LOOKUP(J$6,температуры,плотности)*$N$4+LOOKUP($N$3,температуры,плотности)*(1-1/(1+(J$6-$N$3)/($N$3-$A7)))/LOOKUP($A7,температуры,плотности) -> 1.325765921 | K7: =LOOKUP($N$3,температуры,плотности)/(1+(K$6-$N$3)/($N$3-$A7))/LOOKUP(K$6,температуры,плотности)*$N$4+LOOKUP($N$3,температуры,плотности)*(1-1/(1+(K$6-$N$3)/($N$3-$A7)))/LOOKUP($A7,температуры,плотности) -> 1.332624438 | L7: =LOOKUP($N$3,температуры,плотности)/(1+(L$6-$N$3)/($N$3-$A7))/LOOKUP(L$6,температуры,плотности)*$N$4+LOOKUP($N$3,температуры,плотности)*(1-1/(1+(L$6-$N$3)/($N$3-$A7)))/LOOKUP($A7,температуры,плотности) -> 1.339788064 | M7: =LOOKUP($N$3,температуры,плотности)/(1+(M$6-$N$3)/($N$3-$A7))/LOOKUP(M$6,температуры,плотности)*$N$4+LOOKUP($N$3,температуры,плотности)*(1-1/(1+(M$6-$N$3)/($N$3-$A7)))/LOOKUP($A7,температуры,плотности) -> 1.347277599 | N7: =LOOKUP($N$3,температуры,плотности)/(1+(N$6-$N$3)/($N$3-$A7))/LOOKUP(N$6,температуры,плотности)*$N$4+LOOKUP($N$3,температуры,плотности)*(1-1/(1+(N$6-$N$3)/($N$3-$A7)))/LOOKUP($A7,температуры,плотности) -> 1.355139846 | O7: =LOOKUP($N$3,температуры,плотности)/(1+(O$6-$N$3)/($N$3-$A7))/LOOKUP(O$6,температуры,плотности)*$N$4+LOOKUP($N$3,температуры,плотности)*(1-1/(1+(O$6-$N$3)/($N$3-$A7)))/LOOKUP($A7,температуры,плотности) -> 1.363376736 | P7: =LOOKUP($N$3,температуры,плотности)/(1+(P$6-$N$3)/($N$3-$A7))/LOOKUP(P$6,температуры,плотности)*$N$4+LOOKUP($N$3,температуры,плотности)*(1-1/(1+(P$6-$N$3)/($N$3-$A7)))/LOOKUP($A7,температуры,плотности) -> 1.371990497 | Q7: =LOOKUP($N$3,температуры,плотности)/(1+(Q$6-$N$3)/($N$3-$A7))/LOOKUP(Q$6,температуры,плотности)*$N$4+LOOKUP($N$3,температуры,плотности)*(1-1/(1+(Q$6-$N$3)/($N$3-$A7)))/LOOKUP($A7,температуры,плотности) -> 1.381035263 | R7: =LOOKUP($N$3,температуры,плотности)/(1+(R$6-$N$3)/($N$3-$A7))/LOOKUP(R$6,температуры,плотности)*$N$4+LOOKUP($N$3,температуры,плотности)*(1-1/(1+(R$6-$N$3)/($N$3-$A7)))/LOOKUP($A7,температуры,плотности) -> 1.390570608 | S7: =LOOKUP($N$3,температуры,плотности)/(1+(S$6-$N$3)/($N$3-$A7))/LOOKUP(S$6,температуры,плотности)*$N$4+LOOKUP($N$3,температуры,плотности)*(1-1/(1+(S$6-$N$3)/($N$3-$A7)))/LOOKUP($A7,температуры,плотности) -> 1.400608088 | T7: =LOOKUP($N$3,температуры,плотности)/(1+(T$6-$N$3)/($N$3-$A7))/LOOKUP(T$6,температуры,плотности)*$N$4+LOOKUP($N$3,температуры,плотности)*(1-1/(1+(T$6-$N$3)/($N$3-$A7)))/LOOKUP($A7,температуры,плотности) -> 1.411188418 | U7: =LOOKUP($N$3,температуры,плотности)/(1+(U$6-$N$3)/($N$3-$A7))/LOOKUP(U$6,температуры,плотности)*$N$4+LOOKUP($N$3,температуры,плотности)*(1-1/(1+(U$6-$N$3)/($N$3-$A7)))/LOOKUP($A7,температуры,плотности) -> 1.422356834 | V7: =LOOKUP($N$3,температуры,плотности)/(1+(V$6-$N$3)/($N$3-$A7))/LOOKUP(V$6,температуры,плотности)*$N$4+LOOKUP($N$3,температуры,плотности)*(1-1/(1+(V$6-$N$3)/($N$3-$A7)))/LOOKUP($A7,температуры,плотности) -> 1.434163742 | W7: =LOOKUP($N$3,температуры,плотности)/(1+(W$6-$N$3)/($N$3-$A7))/LOOKUP(W$6,температуры,плотности)*$N$4+LOOKUP($N$3,температуры,плотности)*(1-1/(1+(W$6-$N$3)/($N$3-$A7)))/LOOKUP($A7,температуры,плотности) -> 1.446665481 | X7: =LOOKUP($N$3,температуры,плотности)/(1+(X$6-$N$3)/($N$3-$A7))/LOOKUP(X$6,температуры,плотности)*$N$4+LOOKUP($N$3,температуры,плотности)*(1-1/(1+(X$6-$N$3)/($N$3-$A7)))/LOOKUP($A7,температуры,плотности) -> 1.459956252 | Y7: =LOOKUP($N$3,температуры,плотности)/(1+(Y$6-$N$3)/($N$3-$A7))/LOOKUP(Y$6,температуры,плотности)*$N$4+LOOKUP($N$3,температуры,плотности)*(1-1/(1+(Y$6-$N$3)/($N$3-$A7)))/LOOKUP($A7,температуры,плотности) -> 1.474077958 | Z7: =LOOKUP($N$3,температуры,плотности)/(1+(Z$6-$N$3)/($N$3-$A7))/LOOKUP(Z$6,температуры,плотности)*$N$4+LOOKUP($N$3,температуры,плотности)*(1-1/(1+(Z$6-$N$3)/($N$3-$A7)))/LOOKUP($A7,температуры,плотности) -> 1.489111013 | AA7: =LOOKUP($N$3,температуры,плотности)/(1+(AA$6-$N$3)/($N$3-$A7))/LOOKUP(AA$6,температуры,плотности)*$N$4+LOOKUP($N$3,температуры,плотности)*(1-1/(1+(AA$6-$N$3)/($N$3-$A7)))/LOOKUP($A7,температуры,плотности) -> 1.505146551 | AB7: =LOOKUP($N$3,температуры,плотности)/(1+(AB$6-$N$3)/($N$3-$A7))/LOOKUP(AB$6,температуры,плотности)*$N$4+LOOKUP($N$3,температуры,плотности)*(1-1/(1+(AB$6-$N$3)/($N$3-$A7)))/LOOKUP($A7,температуры,плотности) -> 1.522288277 | AC7: =LOOKUP($N$3,температуры,плотности)/(1+(AC$6-$N$3)/($N$3-$A7))/LOOKUP(AC$6,температуры,плотности)*$N$4+LOOKUP($N$3,температуры,плотности)*(1-1/(1+(AC$6-$N$3)/($N$3-$A7)))/LOOKUP($A7,температуры,плотности) -> 1.540654711 | AI7: 8 | AJ7: 0.9999
A8: 19 | B8: =LOOKUP($N$3,температуры,плотности)/(1+(B$6-$N$3)/($N$3-$A8))/LOOKUP(B$6,температуры,плотности)*$N$4+LOOKUP($N$3,температуры,плотности)*(1-1/(1+(B$6-$N$3)/($N$3-$A8)))/LOOKUP($A8,температуры,плотности) -> 1.330003509 | C8: =LOOKUP($N$3,температуры,плотности)/(1+(C$6-$N$3)/($N$3-$A8))/LOOKUP(C$6,температуры,плотности)*$N$4+LOOKUP($N$3,температуры,плотности)*(1-1/(1+(C$6-$N$3)/($N$3-$A8)))/LOOKUP($A8,температуры,плотности) -> 1.335753609 | D8: =LOOKUP($N$3,температуры,плотности)/(1+(D$6-$N$3)/($N$3-$A8))/LOOKUP(D$6,температуры,плотности)*$N$4+LOOKUP($N$3,температуры,плотности)*(1-1/(1+(D$6-$N$3)/($N$3-$A8)))/LOOKUP($A8,температуры,плотности) -> 1.34171702 | E8: =LOOKUP($N$3,температуры,плотности)/(1+(E$6-$N$3)/($N$3-$A8))/LOOKUP(E$6,температуры,плотности)*$N$4+LOOKUP($N$3,температуры,плотности)*(1-1/(1+(E$6-$N$3)/($N$3-$A8)))/LOOKUP($A8,температуры,плотности) -> 1.347905815 | F8: =LOOKUP($N$3,температуры,плотности)/(1+(F$6-$N$3)/($N$3-$A8))/LOOKUP(F$6,температуры,плотности)*$N$4+LOOKUP($N$3,температуры,плотности)*(1-1/(1+(F$6-$N$3)/($N$3-$A8)))/LOOKUP($A8,температуры,плотности) -> 1.354332997 | G8: =LOOKUP($N$3,температуры,плотности)/(1+(G$6-$N$3)/($N$3-$A8))/LOOKUP(G$6,температуры,плотности)*$N$4+LOOKUP($N$3,температуры,плотности)*(1-1/(1+(G$6-$N$3)/($N$3-$A8)))/LOOKUP($A8,температуры,плотности) -> 1.361012586 | H8: =LOOKUP($N$3,температуры,плотности)/(1+(H$6-$N$3)/($N$3-$A8))/LOOKUP(H$6,температуры,плотности)*$N$4+LOOKUP($N$3,температуры,плотности)*(1-1/(1+(H$6-$N$3)/($N$3-$A8)))/LOOKUP($A8,температуры,плотности) -> 1.367984727 | I8: =LOOKUP($N$3,температуры,плотности)/(1+(I$6-$N$3)/($N$3-$A8))/LOOKUP(I$6,температуры,плотности)*$N$4+LOOKUP($N$3,температуры,плотности)*(1-1/(1+(I$6-$N$3)/($N$3-$A8)))/LOOKUP($A8,температуры,плотности) -> 1.37524176 | J8: =LOOKUP($N$3,температуры,плотности)/(1+(J$6-$N$3)/($N$3-$A8))/LOOKUP(J$6,температуры,плотности)*$N$4+LOOKUP($N$3,температуры,плотности)*(1-1/(1+(J$6-$N$3)/($N$3-$A8)))/LOOKUP($A8,температуры,плотности) -> 1.382801491 | K8: =LOOKUP($N$3,температуры,плотности)/(1+(K$6-$N$3)/($N$3-$A8))/LOOKUP(K$6,температуры,плотности)*$N$4+LOOKUP($N$3,температуры,плотности)*(1-1/(1+(K$6-$N$3)/($N$3-$A8)))/LOOKUP($A8,температуры,плотности) -> 1.390683241 | L8: =LOOKUP($N$3,температуры,плотности)/(1+(L$6-$N$3)/($N$3-$A8))/LOOKUP(L$6,температуры,плотности)*$N$4+LOOKUP($N$3,температуры,плотности)*(1-1/(1+(L$6-$N$3)/($N$3-$A8)))/LOOKUP($A8,температуры,плотности) -> 1.39890801 | M8: =LOOKUP($N$3,температуры,плотности)/(1+(M$6-$N$3)/($N$3-$A8))/LOOKUP(M$6,температуры,плотности)*$N$4+LOOKUP($N$3,температуры,плотности)*(1-1/(1+(M$6-$N$3)/($N$3-$A8)))/LOOKUP($A8,температуры,плотности) -> 1.407498665 | N8: =LOOKUP($N$3,температуры,плотности)/(1+(N$6-$N$3)/($N$3-$A8))/LOOKUP(N$6,температуры,плотности)*$N$4+LOOKUP($N$3,температуры,плотности)*(1-1/(1+(N$6-$N$3)/($N$3-$A8)))/LOOKUP($A8,температуры,плотности) -> 1.416508373 | O8: =LOOKUP($N$3,температуры,плотности)/(1+(O$6-$N$3)/($N$3-$A8))/LOOKUP(O$6,температуры,плотности)*$N$4+LOOKUP($N$3,температуры,плотности)*(1-1/(1+(O$6-$N$3)/($N$3-$A8)))/LOOKUP($A8,температуры,плотности) -> 1.425937431 | P8: =LOOKUP($N$3,температуры,плотности)/(1+(P$6-$N$3)/($N$3-$A8))/LOOKUP(P$6,температуры,плотности)*$N$4+LOOKUP($N$3,температуры,плотности)*(1-1/(1+(P$6-$N$3)/($N$3-$A8)))/LOOKUP($A8,температуры,плотности) -> 1.435786289 | Q8: =LOOKUP($N$3,температуры,плотности)/(1+(Q$6-$N$3)/($N$3-$A8))/LOOKUP(Q$6,температуры,плотности)*$N$4+LOOKUP($N$3,температуры,плотности)*(1-1/(1+(Q$6-$N$3)/($N$3-$A8)))/LOOKUP($A8,температуры,плотности) -> 1.446115952 | R8: =LOOKUP($N$3,температуры,плотности)/(1+(R$6-$N$3)/($N$3-$A8))/LOOKUP(R$6,температуры,плотности)*$N$4+LOOKUP($N$3,температуры,плотности)*(1-1/(1+(R$6-$N$3)/($N$3-$A8)))/LOOKUP($A8,температуры,плотности) -> 1.456993387 | S8: =LOOKUP($N$3,температуры,плотности)/(1+(S$6-$N$3)/($N$3-$A8))/LOOKUP(S$6,температуры,плотности)*$N$4+LOOKUP($N$3,температуры,плотности)*(1-1/(1+(S$6-$N$3)/($N$3-$A8)))/LOOKUP($A8,температуры,плотности) -> 1.468428963 | T8: =LOOKUP($N$3,температуры,плотности)/(1+(T$6-$N$3)/($N$3-$A8))/LOOKUP(T$6,температуры,плотности)*$N$4+LOOKUP($N$3,температуры,плотности)*(1-1/(1+(T$6-$N$3)/($N$3-$A8)))/LOOKUP($A8,температуры,плотности) -> 1.480466741 | U8: =LOOKUP($N$3,температуры,плотности)/(1+(U$6-$N$3)/($N$3-$A8))/LOOKUP(U$6,температуры,плотности)*$N$4+LOOKUP($N$3,температуры,плотности)*(1-1/(1+(U$6-$N$3)/($N$3-$A8)))/LOOKUP($A8,температуры,плотности) -> 1.493155548 | V8: =LOOKUP($N$3,температуры,плотности)/(1+(V$6-$N$3)/($N$3-$A8))/LOOKUP(V$6,температуры,плотности)*$N$4+LOOKUP($N$3,температуры,плотности)*(1-1/(1+(V$6-$N$3)/($N$3-$A8)))/LOOKUP($A8,температуры,плотности) -> 1.506549637 | W8: =LOOKUP($N$3,температуры,плотности)/(1+(W$6-$N$3)/($N$3-$A8))/LOOKUP(W$6,температуры,плотности)*$N$4+LOOKUP($N$3,температуры,плотности)*(1-1/(1+(W$6-$N$3)/($N$3-$A8)))/LOOKUP($A8,температуры,плотности) -> 1.520709459 | X8: =LOOKUP($N$3,температуры,плотности)/(1+(X$6-$N$3)/($N$3-$A8))/LOOKUP(X$6,температуры,плотности)*$N$4+LOOKUP($N$3,температуры,плотности)*(1-1/(1+(X$6-$N$3)/($N$3-$A8)))/LOOKUP($A8,температуры,плотности) -> 1.535738726 | Y8: =LOOKUP($N$3,температуры,плотности)/(1+(Y$6-$N$3)/($N$3-$A8))/LOOKUP(Y$6,температуры,плотности)*$N$4+LOOKUP($N$3,температуры,плотности)*(1-1/(1+(Y$6-$N$3)/($N$3-$A8)))/LOOKUP($A8,температуры,плотности) -> 1.551679163 | Z8: =LOOKUP($N$3,температуры,плотности)/(1+(Z$6-$N$3)/($N$3-$A8))/LOOKUP(Z$6,температуры,плотности)*$N$4+LOOKUP($N$3,температуры,плотности)*(1-1/(1+(Z$6-$N$3)/($N$3-$A8)))/LOOKUP($A8,температуры,плотности) -> 1.568616192 | AA8: =LOOKUP($N$3,температуры,плотности)/(1+(AA$6-$N$3)/($N$3-$A8))/LOOKUP(AA$6,температуры,плотности)*$N$4+LOOKUP($N$3,температуры,плотности)*(1-1/(1+(AA$6-$N$3)/($N$3-$A8)))/LOOKUP($A8,температуры,плотности) -> 1.586646257 | AB8: =LOOKUP($N$3,температуры,плотности)/(1+(AB$6-$N$3)/($N$3-$A8))/LOOKUP(AB$6,температуры,плотности)*$N$4+LOOKUP($N$3,температуры,плотности)*(1-1/(1+(AB$6-$N$3)/($N$3-$A8)))/LOOKUP($A8,температуры,плотности) -> 1.605878662 | AC8: =LOOKUP($N$3,температуры,плотности)/(1+(AC$6-$N$3)/($N$3-$A8))/LOOKUP(AC$6,температуры,плотности)*$N$4+LOOKUP($N$3,температуры,плотности)*(1-1/(1+(AC$6-$N$3)/($N$3-$A8)))/LOOKUP($A8,температуры,плотности) -> 1.626437785 | AI8: 9 | AJ8: 0.9998
A9: 18 | B9: =LOOKUP($N$3,температуры,плотности)/(1+(B$6-$N$3)/($N$3-$A9))/LOOKUP(B$6,температуры,плотности)*$N$4+LOOKUP($N$3,температуры,плотности)*(1-1/(1+(B$6-$N$3)/($N$3-$A9)))/LOOKUP($A9,температуры,плотности) -> 1.378271874 | C9: =LOOKUP($N$3,температуры,плотности)/(1+(C$6-$N$3)/($N$3-$A9))/LOOKUP(C$6,температуры,плотности)*$N$4+LOOKUP($N$3,температуры,плотности)*(1-1/(1+(C$6-$N$3)/($N$3-$A9)))/LOOKUP($A9,температуры,плотности) -> 1.38473986 | D9: =LOOKUP($N$3,температуры,плотности)/(1+(D$6-$N$3)/($N$3-$A9))/LOOKUP(D$6,температуры,плотности)*$N$4+LOOKUP($N$3,температуры,плотности)*(1-1/(1+(D$6-$N$3)/($N$3-$A9)))/LOOKUP($A9,температуры,плотности) -> 1.391443439 | E9: =LOOKUP($N$3,температуры,плотности)/(1+(E$6-$N$3)/($N$3-$A9))/LOOKUP(E$6,температуры,плотности)*$N$4+LOOKUP($N$3,температуры,плотности)*(1-1/(1+(E$6-$N$3)/($N$3-$A9)))/LOOKUP($A9,температуры,плотности) -> 1.398395699 | F9: =LOOKUP($N$3,температуры,плотности)/(1+(F$6-$N$3)/($N$3-$A9))/LOOKUP(F$6,температуры,плотности)*$N$4+LOOKUP($N$3,температуры,плотности)*(1-1/(1+(F$6-$N$3)/($N$3-$A9)))/LOOKUP($A9,температуры,плотности) -> 1.405610716 | G9: =LOOKUP($N$3,температуры,плотности)/(1+(G$6-$N$3)/($N$3-$A9))/LOOKUP(G$6,температуры,плотности)*$N$4+LOOKUP($N$3,температуры,плотности)*(1-1/(1+(G$6-$N$3)/($N$3-$A9)))/LOOKUP($A9,температуры,плотности) -> 1.413103648 | H9: =LOOKUP($N$3,температуры,плотности)/(1+(H$6-$N$3)/($N$3-$A9))/LOOKUP(H$6,температуры,плотности)*$N$4+LOOKUP($N$3,температуры,плотности)*(1-1/(1+(H$6-$N$3)/($N$3-$A9)))/LOOKUP($A9,температуры,плотности) -> 1.420919435 | I9: =LOOKUP($N$3,температуры,плотности)/(1+(I$6-$N$3)/($N$3-$A9))/LOOKUP(I$6,температуры,плотности)*$N$4+LOOKUP($N$3,температуры,плотности)*(1-1/(1+(I$6-$N$3)/($N$3-$A9)))/LOOKUP($A9,температуры,плотности) -> 1.429048214 | J9: =LOOKUP($N$3,температуры,плотности)/(1+(J$6-$N$3)/($N$3-$A9))/LOOKUP(J$6,температуры,плотности)*$N$4+LOOKUP($N$3,температуры,плотности)*(1-1/(1+(J$6-$N$3)/($N$3-$A9)))/LOOKUP($A9,температуры,плотности) -> 1.437509148 | K9: =LOOKUP($N$3,температуры,плотности)/(1+(K$6-$N$3)/($N$3-$A9))/LOOKUP(K$6,температуры,плотности)*$N$4+LOOKUP($N$3,температуры,плотности)*(1-1/(1+(K$6-$N$3)/($N$3-$A9)))/LOOKUP($A9,температуры,плотности) -> 1.446322995 | L9: =LOOKUP($N$3,температуры,плотности)/(1+(L$6-$N$3)/($N$3-$A9))/LOOKUP(L$6,температуры,плотности)*$N$4+LOOKUP($N$3,температуры,плотности)*(1-1/(1+(L$6-$N$3)/($N$3-$A9)))/LOOKUP($A9,температуры,плотности) -> 1.455512281 | M9: =LOOKUP($N$3,температуры,плотности)/(1+(M$6-$N$3)/($N$3-$A9))/LOOKUP(M$6,температуры,плотности)*$N$4+LOOKUP($N$3,температуры,плотности)*(1-1/(1+(M$6-$N$3)/($N$3-$A9)))/LOOKUP($A9,температуры,плотности) -> 1.465101491 | N9: =LOOKUP($N$3,температуры,плотности)/(1+(N$6-$N$3)/($N$3-$A9))/LOOKUP(N$6,температуры,плотности)*$N$4+LOOKUP($N$3,температуры,плотности)*(1-1/(1+(N$6-$N$3)/($N$3-$A9)))/LOOKUP($A9,температуры,плотности) -> 1.475149477 | O9: =LOOKUP($N$3,температуры,плотности)/(1+(O$6-$N$3)/($N$3-$A9))/LOOKUP(O$6,температуры,плотности)*$N$4+LOOKUP($N$3,температуры,плотности)*(1-1/(1+(O$6-$N$3)/($N$3-$A9)))/LOOKUP($A9,температуры,плотности) -> 1.485654525 | P9: =LOOKUP($N$3,температуры,плотности)/(1+(P$6-$N$3)/($N$3-$A9))/LOOKUP(P$6,температуры,плотности)*$N$4+LOOKUP($N$3,температуры,плотности)*(1-1/(1+(P$6-$N$3)/($N$3-$A9)))/LOOKUP($A9,температуры,плотности) -> 1.496614902 | Q9: =LOOKUP($N$3,температуры,плотности)/(1+(Q$6-$N$3)/($N$3-$A9))/LOOKUP(Q$6,температуры,плотности)*$N$4+LOOKUP($N$3,температуры,плотности)*(1-1/(1+(Q$6-$N$3)/($N$3-$A9)))/LOOKUP($A9,температуры,плотности) -> 1.508097626 | R9: =LOOKUP($N$3,температуры,плотности)/(1+(R$6-$N$3)/($N$3-$A9))/LOOKUP(R$6,температуры,плотности)*$N$4+LOOKUP($N$3,температуры,плотности)*(1-1/(1+(R$6-$N$3)/($N$3-$A9)))/LOOKUP($A9,температуры,плотности) -> 1.520176098 | S9: =LOOKUP($N$3,температуры,плотности)/(1+(S$6-$N$3)/($N$3-$A9))/LOOKUP(S$6,температуры,плотности)*$N$4+LOOKUP($N$3,температуры,плотности)*(1-1/(1+(S$6-$N$3)/($N$3-$A9)))/LOOKUP($A9,температуры,плотности) -> 1.53285886 | T9: =LOOKUP($N$3,температуры,плотности)/(1+(T$6-$N$3)/($N$3-$A9))/LOOKUP(T$6,температуры,плотности)*$N$4+LOOKUP($N$3,температуры,плотности)*(1-1/(1+(T$6-$N$3)/($N$3-$A9)))/LOOKUP($A9,температуры,плотности) -> 1.546192395 | U9: =LOOKUP($N$3,температуры,плотности)/(1+(U$6-$N$3)/($N$3-$A9))/LOOKUP(U$6,температуры,плотности)*$N$4+LOOKUP($N$3,температуры,плотности)*(1-1/(1+(U$6-$N$3)/($N$3-$A9)))/LOOKUP($A9,температуры,плотности) -> 1.56022808 | V9: =LOOKUP($N$3,температуры,плотности)/(1+(V$6-$N$3)/($N$3-$A9))/LOOKUP(V$6,температуры,плотности)*$N$4+LOOKUP($N$3,температуры,плотности)*(1-1/(1+(V$6-$N$3)/($N$3-$A9)))/LOOKUP($A9,температуры,плотности) -> 1.575022845 | W9: =LOOKUP($N$3,температуры,плотности)/(1+(W$6-$N$3)/($N$3-$A9))/LOOKUP(W$6,температуры,плотности)*$N$4+LOOKUP($N$3,температуры,плотности)*(1-1/(1+(W$6-$N$3)/($N$3-$A9)))/LOOKUP($A9,температуры,плотности) -> 1.590639947 | X9: =LOOKUP($N$3,температуры,плотности)/(1+(X$6-$N$3)/($N$3-$A9))/LOOKUP(X$6,температуры,плотности)*$N$4+LOOKUP($N$3,температуры,плотности)*(1-1/(1+(X$6-$N$3)/($N$3-$A9)))/LOOKUP($A9,температуры,плотности) -> 1.607190836 | Y9: =LOOKUP($N$3,температуры,плотности)/(1+(Y$6-$N$3)/($N$3-$A9))/LOOKUP(Y$6,температуры,плотности)*$N$4+LOOKUP($N$3,температуры,плотности)*(1-1/(1+(Y$6-$N$3)/($N$3-$A9)))/LOOKUP($A9,температуры,плотности) -> 1.624715654 | Z9: =LOOKUP($N$3,температуры,плотности)/(1+(Z$6-$N$3)/($N$3-$A9))/LOOKUP(Z$6,температуры,плотности)*$N$4+LOOKUP($N$3,температуры,плотности)*(1-1/(1+(Z$6-$N$3)/($N$3-$A9)))/LOOKUP($A9,температуры,плотности) -> 1.643302938 | AA9: =LOOKUP($N$3,температуры,плотности)/(1+(AA$6-$N$3)/($N$3-$A9))/LOOKUP(AA$6,температуры,плотности)*$N$4+LOOKUP($N$3,температуры,плотности)*(1-1/(1+(AA$6-$N$3)/($N$3-$A9)))/LOOKUP($A9,температуры,плотности) -> 1.663052294 | AB9: =LOOKUP($N$3,температуры,плотности)/(1+(AB$6-$N$3)/($N$3-$A9))/LOOKUP(AB$6,температуры,плотности)*$N$4+LOOKUP($N$3,температуры,плотности)*(1-1/(1+(AB$6-$N$3)/($N$3-$A9)))/LOOKUP($A9,температуры,плотности) -> 1.68407618 | AC9: =LOOKUP($N$3,температуры,плотности)/(1+(AC$6-$N$3)/($N$3-$A9))/LOOKUP(AC$6,температуры,плотности)*$N$4+LOOKUP($N$3,температуры,плотности)*(1-1/(1+(AC$6-$N$3)/($N$3-$A9)))/LOOKUP($A9,температуры,плотности) -> 1.706502049 | AI9: 10 | AJ9: 0.9997
A10: 17 | B10: =LOOKUP($N$3,температуры,плотности)/(1+(B$6-$N$3)/($N$3-$A10))/LOOKUP(B$6,температуры,плотности)*$N$4+LOOKUP($N$3,температуры,плотности)*(1-1/(1+(B$6-$N$3)/($N$3-$A10)))/LOOKUP($A10,температуры,плотности) -> 1.424875881 | C10: =LOOKUP($N$3,температуры,плотности)/(1+(C$6-$N$3)/($N$3-$A10))/LOOKUP(C$6,температуры,плотности)*$N$4+LOOKUP($N$3,температуры,плотности)*(1-1/(1+(C$6-$N$3)/($N$3-$A10)))/LOOKUP($A10,температуры,плотности) -> 1.432007363 | D10: =LOOKUP($N$3,температуры,плотности)/(1+(D$6-$N$3)/($N$3-$A10))/LOOKUP(D$6,температуры,плотности)*$N$4+LOOKUP($N$3,температуры,плотности)*(1-1/(1+(D$6-$N$3)/($N$3-$A10)))/LOOKUP($A10,температуры,плотности) -> 1.439393982 | E10: =LOOKUP($N$3,температуры,плотности)/(1+(E$6-$N$3)/($N$3-$A10))/LOOKUP(E$6,температуры,плотности)*$N$4+LOOKUP($N$3,температуры,плотности)*(1-1/(1+(E$6-$N$3)/($N$3-$A10)))/LOOKUP($A10,температуры,плотности) -> 1.447049655 | F10: =LOOKUP($N$3,температуры,плотности)/(1+(F$6-$N$3)/($N$3-$A10))/LOOKUP(F$6,температуры,плотности)*$N$4+LOOKUP($N$3,температуры,плотности)*(1-1/(1+(F$6-$N$3)/($N$3-$A10)))/LOOKUP($A10,температуры,плотности) -> 1.454989329 | G10: =LOOKUP($N$3,температуры,плотности)/(1+(G$6-$N$3)/($N$3-$A10))/LOOKUP(G$6,температуры,плотности)*$N$4+LOOKUP($N$3,температуры,плотности)*(1-1/(1+(G$6-$N$3)/($N$3-$A10)))/LOOKUP($A10,температуры,плотности) -> 1.463229077 | H10: =LOOKUP($N$3,температуры,плотности)/(1+(H$6-$N$3)/($N$3-$A10))/LOOKUP(H$6,температуры,плотности)*$N$4+LOOKUP($N$3,температуры,плотности)*(1-1/(1+(H$6-$N$3)/($N$3-$A10)))/LOOKUP($A10,температуры,плотности) -> 1.47181826 | I10: =LOOKUP($N$3,температуры,плотности)/(1+(I$6-$N$3)/($N$3-$A10))/LOOKUP(I$6,температуры,плотности)*$N$4+LOOKUP($N$3,температуры,плотности)*(1-1/(1+(I$6-$N$3)/($N$3-$A10)))/LOOKUP($A10,температуры,плотности) -> 1.480744679 | J10: =LOOKUP($N$3,температуры,плотности)/(1+(J$6-$N$3)/($N$3-$A10))/LOOKUP(J$6,температуры,плотности)*$N$4+LOOKUP($N$3,температуры,плотности)*(1-1/(1+(J$6-$N$3)/($N$3-$A10)))/LOOKUP($A10,температуры,плотности) -> 1.490028566 | K10: =LOOKUP($N$3,температуры,плотности)/(1+(K$6-$N$3)/($N$3-$A10))/LOOKUP(K$6,температуры,плотности)*$N$4+LOOKUP($N$3,температуры,плотности)*(1-1/(1+(K$6-$N$3)/($N$3-$A10)))/LOOKUP($A10,температуры,плотности) -> 1.499691806 | L10: =LOOKUP($N$3,температуры,плотности)/(1+(L$6-$N$3)/($N$3-$A10))/LOOKUP(L$6,температуры,плотности)*$N$4+LOOKUP($N$3,температуры,плотности)*(1-1/(1+(L$6-$N$3)/($N$3-$A10)))/LOOKUP($A10,температуры,плотности) -> 1.509758108 | M10: =LOOKUP($N$3,температуры,плотности)/(1+(M$6-$N$3)/($N$3-$A10))/LOOKUP(M$6,температуры,плотности)*$N$4+LOOKUP($N$3,температуры,плотности)*(1-1/(1+(M$6-$N$3)/($N$3-$A10)))/LOOKUP($A10,температуры,плотности) -> 1.5202532 | N10: =LOOKUP($N$3,температуры,плотности)/(1+(N$6-$N$3)/($N$3-$A10))/LOOKUP(N$6,температуры,плотности)*$N$4+LOOKUP($N$3,температуры,плотности)*(1-1/(1+(N$6-$N$3)/($N$3-$A10)))/LOOKUP($A10,температуры,плотности) -> 1.531241034 | O10: =LOOKUP($N$3,температуры,плотности)/(1+(O$6-$N$3)/($N$3-$A10))/LOOKUP(O$6,температуры,плотности)*$N$4+LOOKUP($N$3,температуры,плотности)*(1-1/(1+(O$6-$N$3)/($N$3-$A10)))/LOOKUP($A10,температуры,плотности) -> 1.542717592 | P10: =LOOKUP($N$3,температуры,плотности)/(1+(P$6-$N$3)/($N$3-$A10))/LOOKUP(P$6,температуры,плотности)*$N$4+LOOKUP($N$3,температуры,плотности)*(1-1/(1+(P$6-$N$3)/($N$3-$A10)))/LOOKUP($A10,температуры,плотности) -> 1.554678644 | Q10: =LOOKUP($N$3,температуры,плотности)/(1+(Q$6-$N$3)/($N$3-$A10))/LOOKUP(Q$6,температуры,плотности)*$N$4+LOOKUP($N$3,температуры,плотности)*(1-1/(1+(Q$6-$N$3)/($N$3-$A10)))/LOOKUP($A10,температуры,плотности) -> 1.567196498 | R10: =LOOKUP($N$3,температуры,плотности)/(1+(R$6-$N$3)/($N$3-$A10))/LOOKUP(R$6,температуры,плотности)*$N$4+LOOKUP($N$3,температуры,плотности)*(1-1/(1+(R$6-$N$3)/($N$3-$A10)))/LOOKUP($A10,температуры,плотности) -> 1.580350173 | S10: =LOOKUP($N$3,температуры,плотности)/(1+(S$6-$N$3)/($N$3-$A10))/LOOKUP(S$6,температуры,плотности)*$N$4+LOOKUP($N$3,температуры,плотности)*(1-1/(1+(S$6-$N$3)/($N$3-$A10)))/LOOKUP($A10,температуры,плотности) -> 1.594145899 | T10: =LOOKUP($N$3,температуры,плотности)/(1+(T$6-$N$3)/($N$3-$A10))/LOOKUP(T$6,температуры,плотности)*$N$4+LOOKUP($N$3,температуры,плотности)*(1-1/(1+(T$6-$N$3)/($N$3-$A10)))/LOOKUP($A10,температуры,плотности) -> 1.608631831 | U10: =LOOKUP($N$3,температуры,плотности)/(1+(U$6-$N$3)/($N$3-$A10))/LOOKUP(U$6,температуры,плотности)*$N$4+LOOKUP($N$3,температуры,плотности)*(1-1/(1+(U$6-$N$3)/($N$3-$A10)))/LOOKUP($A10,температуры,плотности) -> 1.623861059 | V10: =LOOKUP($N$3,температуры,плотности)/(1+(V$6-$N$3)/($N$3-$A10))/LOOKUP(V$6,температуры,плотности)*$N$4+LOOKUP($N$3,температуры,плотности)*(1-1/(1+(V$6-$N$3)/($N$3-$A10)))/LOOKUP($A10,температуры,плотности) -> 1.639892264 | W10: =LOOKUP($N$3,температуры,плотности)/(1+(W$6-$N$3)/($N$3-$A10))/LOOKUP(W$6,температуры,плотности)*$N$4+LOOKUP($N$3,температуры,плотности)*(1-1/(1+(W$6-$N$3)/($N$3-$A10)))/LOOKUP($A10,температуры,плотности) -> 1.656790471 | X10: =LOOKUP($N$3,температуры,плотности)/(1+(X$6-$N$3)/($N$3-$A10))/LOOKUP(X$6,температуры,плотности)*$N$4+LOOKUP($N$3,температуры,плотности)*(1-1/(1+(X$6-$N$3)/($N$3-$A10)))/LOOKUP($A10,температуры,плотности) -> 1.674673448 | Y10: =LOOKUP($N$3,температуры,плотности)/(1+(Y$6-$N$3)/($N$3-$A10))/LOOKUP(Y$6,температуры,плотности)*$N$4+LOOKUP($N$3,температуры,плотности)*(1-1/(1+(Y$6-$N$3)/($N$3-$A10)))/LOOKUP($A10,температуры,плотности) -> 1.693578693 | Z10: =LOOKUP($N$3,температуры,плотности)/(1+(Z$6-$N$3)/($N$3-$A10))/LOOKUP(Z$6,температуры,плотности)*$N$4+LOOKUP($N$3,температуры,плотности)*(1-1/(1+(Z$6-$N$3)/($N$3-$A10)))/LOOKUP($A10,температуры,плотности) -> 1.713596407 | AA10: =LOOKUP($N$3,температуры,плотности)/(1+(AA$6-$N$3)/($N$3-$A10))/LOOKUP(AA$6,температуры,плотности)*$N$4+LOOKUP($N$3,температуры,плотности)*(1-1/(1+(AA$6-$N$3)/($N$3-$A10)))/LOOKUP($A10,температуры,плотности) -> 1.734827723 | AB10: =LOOKUP($N$3,температуры,плотности)/(1+(AB$6-$N$3)/($N$3-$A10))/LOOKUP(AB$6,температуры,плотности)*$N$4+LOOKUP($N$3,температуры,плотности)*(1-1/(1+(AB$6-$N$3)/($N$3-$A10)))/LOOKUP($A10,температуры,плотности) -> 1.757386414 | AC10: =LOOKUP($N$3,температуры,плотности)/(1+(AC$6-$N$3)/($N$3-$A10))/LOOKUP(AC$6,температуры,плотности)*$N$4+LOOKUP($N$3,температуры,плотности)*(1-1/(1+(AC$6-$N$3)/($N$3-$A10)))/LOOKUP($A10,температуры,плотности) -> 1.781400936 | AI10: 11 | AJ10: 0.9996
A11: 16 | B11: =LOOKUP($N$3,температуры,плотности)/(1+(B$6-$N$3)/($N$3-$A11))/LOOKUP(B$6,температуры,плотности)*$N$4+LOOKUP($N$3,температуры,плотности)*(1-1/(1+(B$6-$N$3)/($N$3-$A11)))/LOOKUP($A11,температуры,плотности) -> 1.46990016 | C11: =LOOKUP($N$3,температуры,плотности)/(1+(C$6-$N$3)/($N$3-$A11))/LOOKUP(C$6,температуры,плотности)*$N$4+LOOKUP($N$3,температуры,плотности)*(1-1/(1+(C$6-$N$3)/($N$3-$A11)))/LOOKUP($A11,температуры,плотности) -> 1.47764502 | D11: =LOOKUP($N$3,температуры,плотности)/(1+(D$6-$N$3)/($N$3-$A11))/LOOKUP(D$6,температуры,плотности)*$N$4+LOOKUP($N$3,температуры,плотности)*(1-1/(1+(D$6-$N$3)/($N$3-$A11)))/LOOKUP($A11,температуры,плотности) -> 1.485662118 | E11: =LOOKUP($N$3,температуры,плотности)/(1+(E$6-$N$3)/($N$3-$A11))/LOOKUP(E$6,температуры,плотности)*$N$4+LOOKUP($N$3,температуры,плотности)*(1-1/(1+(E$6-$N$3)/($N$3-$A11)))/LOOKUP($A11,температуры,плотности) -> 1.493966038 | F11: =LOOKUP($N$3,температуры,плотности)/(1+(F$6-$N$3)/($N$3-$A11))/LOOKUP(F$6,температуры,плотности)*$N$4+LOOKUP($N$3,температуры,плотности)*(1-1/(1+(F$6-$N$3)/($N$3-$A11)))/LOOKUP($A11,температуры,плотности) -> 1.502572422 | G11: =LOOKUP($N$3,температуры,плотности)/(1+(G$6-$N$3)/($N$3-$A11))/LOOKUP(G$6,температуры,плотности)*$N$4+LOOKUP($N$3,температуры,плотности)*(1-1/(1+(G$6-$N$3)/($N$3-$A11)))/LOOKUP($A11,температуры,плотности) -> 1.511498075 | H11: =LOOKUP($N$3,температуры,плотности)/(1+(H$6-$N$3)/($N$3-$A11))/LOOKUP(H$6,температуры,плотности)*$N$4+LOOKUP($N$3,температуры,плотности)*(1-1/(1+(H$6-$N$3)/($N$3-$A11)))/LOOKUP($A11,температуры,плотности) -> 1.520796442 | I11: =LOOKUP($N$3,температуры,плотности)/(1+(I$6-$N$3)/($N$3-$A11))/LOOKUP(I$6,температуры,плотности)*$N$4+LOOKUP($N$3,температуры,плотности)*(1-1/(1+(I$6-$N$3)/($N$3-$A11)))/LOOKUP($A11,температуры,плотности) -> 1.530452884 | J11: =LOOKUP($N$3,температуры,плотности)/(1+(J$6-$N$3)/($N$3-$A11))/LOOKUP(J$6,температуры,плотности)*$N$4+LOOKUP($N$3,температуры,плотности)*(1-1/(1+(J$6-$N$3)/($N$3-$A11)))/LOOKUP($A11,температуры,плотности) -> 1.540488464 | K11: =LOOKUP($N$3,температуры,плотности)/(1+(K$6-$N$3)/($N$3-$A11))/LOOKUP(K$6,температуры,плотности)*$N$4+LOOKUP($N$3,температуры,плотности)*(1-1/(1+(K$6-$N$3)/($N$3-$A11)))/LOOKUP($A11,температуры,плотности) -> 1.55092593 | L11: =LOOKUP($N$3,температуры,плотности)/(1+(L$6-$N$3)/($N$3-$A11))/LOOKUP(L$6,температуры,плотности)*$N$4+LOOKUP($N$3,температуры,плотности)*(1-1/(1+(L$6-$N$3)/($N$3-$A11)))/LOOKUP($A11,температуры,плотности) -> 1.561789886 | M11: =LOOKUP($N$3,температуры,плотности)/(1+(M$6-$N$3)/($N$3-$A11))/LOOKUP(M$6,температуры,плотности)*$N$4+LOOKUP($N$3,температуры,плотности)*(1-1/(1+(M$6-$N$3)/($N$3-$A11)))/LOOKUP($A11,температуры,плотности) -> 1.573106986 | N11: =LOOKUP($N$3,температуры,плотности)/(1+(N$6-$N$3)/($N$3-$A11))/LOOKUP(N$6,температуры,плотности)*$N$4+LOOKUP($N$3,температуры,плотности)*(1-1/(1+(N$6-$N$3)/($N$3-$A11)))/LOOKUP($A11,температуры,плотности) -> 1.584945782 | O11: =LOOKUP($N$3,температуры,плотности)/(1+(O$6-$N$3)/($N$3-$A11))/LOOKUP(O$6,температуры,плотности)*$N$4+LOOKUP($N$3,температуры,плотности)*(1-1/(1+(O$6-$N$3)/($N$3-$A11)))/LOOKUP($A11,температуры,плотности) -> 1.597299721 | P11: =LOOKUP($N$3,температуры,плотности)/(1+(P$6-$N$3)/($N$3-$A11))/LOOKUP(P$6,температуры,плотности)*$N$4+LOOKUP($N$3,температуры,плотности)*(1-1/(1+(P$6-$N$3)/($N$3-$A11)))/LOOKUP($A11,температуры,плотности) -> 1.610161839 | Q11: =LOOKUP($N$3,температуры,плотности)/(1+(Q$6-$N$3)/($N$3-$A11))/LOOKUP(Q$6,температуры,плотности)*$N$4+LOOKUP($N$3,температуры,плотности)*(1-1/(1+(Q$6-$N$3)/($N$3-$A11)))/LOOKUP($A11,температуры,плотности) -> 1.62360912 | R11: =LOOKUP($N$3,температуры,плотности)/(1+(R$6-$N$3)/($N$3-$A11))/LOOKUP(R$6,температуры,плотности)*$N$4+LOOKUP($N$3,температуры,плотности)*(1-1/(1+(R$6-$N$3)/($N$3-$A11)))/LOOKUP($A11,температуры,плотности) -> 1.637725517 | S11: =LOOKUP($N$3,температуры,плотности)/(1+(S$6-$N$3)/($N$3-$A11))/LOOKUP(S$6,температуры,плотности)*$N$4+LOOKUP($N$3,температуры,плотности)*(1-1/(1+(S$6-$N$3)/($N$3-$A11)))/LOOKUP($A11,температуры,плотности) -> 1.652514571 | T11: =LOOKUP($N$3,температуры,плотности)/(1+(T$6-$N$3)/($N$3-$A11))/LOOKUP(T$6,температуры,плотности)*$N$4+LOOKUP($N$3,температуры,плотности)*(1-1/(1+(T$6-$N$3)/($N$3-$A11)))/LOOKUP($A11,температуры,плотности) -> 1.668025503 | U11: =LOOKUP($N$3,температуры,плотности)/(1+(U$6-$N$3)/($N$3-$A11))/LOOKUP(U$6,температуры,плотности)*$N$4+LOOKUP($N$3,температуры,плотности)*(1-1/(1+(U$6-$N$3)/($N$3-$A11)))/LOOKUP($A11,температуры,плотности) -> 1.68431245 | V11: =LOOKUP($N$3,температуры,плотности)/(1+(V$6-$N$3)/($N$3-$A11))/LOOKUP(V$6,температуры,плотности)*$N$4+LOOKUP($N$3,температуры,плотности)*(1-1/(1+(V$6-$N$3)/($N$3-$A11)))/LOOKUP($A11,температуры,плотности) -> 1.701435107 | W11: =LOOKUP($N$3,температуры,плотности)/(1+(W$6-$N$3)/($N$3-$A11))/LOOKUP(W$6,температуры,плотности)*$N$4+LOOKUP($N$3,температуры,плотности)*(1-1/(1+(W$6-$N$3)/($N$3-$A11)))/LOOKUP($A11,температуры,плотности) -> 1.71945945 | X11: =LOOKUP($N$3,температуры,плотности)/(1+(X$6-$N$3)/($N$3-$A11))/LOOKUP(X$6,температуры,плотности)*$N$4+LOOKUP($N$3,температуры,плотности)*(1-1/(1+(X$6-$N$3)/($N$3-$A11)))/LOOKUP($A11,температуры,плотности) -> 1.738508411 | Y11: =LOOKUP($N$3,температуры,плотности)/(1+(Y$6-$N$3)/($N$3-$A11))/LOOKUP(Y$6,температуры,плотности)*$N$4+LOOKUP($N$3,температуры,плотности)*(1-1/(1+(Y$6-$N$3)/($N$3-$A11)))/LOOKUP($A11,температуры,плотности) -> 1.758616068 | Z11: =LOOKUP($N$3,температуры,плотности)/(1+(Z$6-$N$3)/($N$3-$A11))/LOOKUP(Z$6,температуры,плотности)*$N$4+LOOKUP($N$3,температуры,плотности)*(1-1/(1+(Z$6-$N$3)/($N$3-$A11)))/LOOKUP($A11,температуры,плотности) -> 1.779873167 | AA11: =LOOKUP($N$3,температуры,плотности)/(1+(AA$6-$N$3)/($N$3-$A11))/LOOKUP(AA$6,температуры,плотности)*$N$4+LOOKUP($N$3,температуры,плотности)*(1-1/(1+(AA$6-$N$3)/($N$3-$A11)))/LOOKUP($A11,температуры,плотности) -> 1.802381126 | AB11: =LOOKUP($N$3,температуры,плотности)/(1+(AB$6-$N$3)/($N$3-$A11))/LOOKUP(AB$6,температуры,плотности)*$N$4+LOOKUP($N$3,температуры,плотности)*(1-1/(1+(AB$6-$N$3)/($N$3-$A11)))/LOOKUP($A11,температуры,плотности) -> 1.826253661 | AC11: =LOOKUP($N$3,температуры,плотности)/(1+(AC$6-$N$3)/($N$3-$A11))/LOOKUP(AC$6,температуры,плотности)*$N$4+LOOKUP($N$3,температуры,плотности)*(1-1/(1+(AC$6-$N$3)/($N$3-$A11)))/LOOKUP($A11,температуры,плотности) -> 1.8516187 | AI11: 12 | AJ11: 0.9995
A12: 15 | B12: =LOOKUP($N$3,температуры,плотности)/(1+(B$6-$N$3)/($N$3-$A12))/LOOKUP(B$6,температуры,плотности)*$N$4+LOOKUP($N$3,температуры,плотности)*(1-1/(1+(B$6-$N$3)/($N$3-$A12)))/LOOKUP($A12,температуры,плотности) -> 1.513506924 | C12: =LOOKUP($N$3,температуры,плотности)/(1+(C$6-$N$3)/($N$3-$A12))/LOOKUP(C$6,температуры,плотности)*$N$4+LOOKUP($N$3,температуры,плотности)*(1-1/(1+(C$6-$N$3)/($N$3-$A12)))/LOOKUP($A12,температуры,плотности) -> 1.521818651 | D12: =LOOKUP($N$3,температуры,плотности)/(1+(D$6-$N$3)/($N$3-$A12))/LOOKUP(D$6,температуры,плотности)*$N$4+LOOKUP($N$3,температуры,плотности)*(1-1/(1+(D$6-$N$3)/($N$3-$A12)))/LOOKUP($A12,температуры,плотности) -> 1.530417522 | E12: =LOOKUP($N$3,температуры,плотности)/(1+(E$6-$N$3)/($N$3-$A12))/LOOKUP(E$6,температуры,плотности)*$N$4+LOOKUP($N$3,температуры,плотности)*(1-1/(1+(E$6-$N$3)/($N$3-$A12)))/LOOKUP($A12,температуры,плотности) -> 1.53931865 | F12: =LOOKUP($N$3,температуры,плотности)/(1+(F$6-$N$3)/($N$3-$A12))/LOOKUP(F$6,температуры,плотности)*$N$4+LOOKUP($N$3,температуры,плотности)*(1-1/(1+(F$6-$N$3)/($N$3-$A12)))/LOOKUP($A12,температуры,плотности) -> 1.548538226 | G12: =LOOKUP($N$3,температуры,плотности)/(1+(G$6-$N$3)/($N$3-$A12))/LOOKUP(G$6,температуры,плотности)*$N$4+LOOKUP($N$3,температуры,плотности)*(1-1/(1+(G$6-$N$3)/($N$3-$A12)))/LOOKUP($A12,температуры,плотности) -> 1.558093618 | H12: =LOOKUP($N$3,температуры,плотности)/(1+(H$6-$N$3)/($N$3-$A12))/LOOKUP(H$6,температуры,плотности)*$N$4+LOOKUP($N$3,температуры,плотности)*(1-1/(1+(H$6-$N$3)/($N$3-$A12)))/LOOKUP($A12,температуры,плотности) -> 1.568042061 | I12: =LOOKUP($N$3,температуры,плотности)/(1+(I$6-$N$3)/($N$3-$A12))/LOOKUP(I$6,температуры,плотности)*$N$4+LOOKUP($N$3,температуры,плотности)*(1-1/(1+(I$6-$N$3)/($N$3-$A12)))/LOOKUP($A12,температуры,плотности) -> 1.578366403 | J12: =LOOKUP($N$3,температуры,плотности)/(1+(J$6-$N$3)/($N$3-$A12))/LOOKUP(J$6,температуры,плотности)*$N$4+LOOKUP($N$3,температуры,плотности)*(1-1/(1+(J$6-$N$3)/($N$3-$A12)))/LOOKUP($A12,температуры,плотности) -> 1.58908833 | K12: =LOOKUP($N$3,температуры,плотности)/(1+(K$6-$N$3)/($N$3-$A12))/LOOKUP(K$6,температуры,плотности)*$N$4+LOOKUP($N$3,температуры,плотности)*(1-1/(1+(K$6-$N$3)/($N$3-$A12)))/LOOKUP($A12,температуры,плотности) -> 1.600231229 | L12: =LOOKUP($N$3,температуры,плотности)/(1+(L$6-$N$3)/($N$3-$A12))/LOOKUP(L$6,температуры,плотности)*$N$4+LOOKUP($N$3,температуры,плотности)*(1-1/(1+(L$6-$N$3)/($N$3-$A12)))/LOOKUP($A12,температуры,плотности) -> 1.611820355 | M12: =LOOKUP($N$3,температуры,плотности)/(1+(M$6-$N$3)/($N$3-$A12))/LOOKUP(M$6,температуры,плотности)*$N$4+LOOKUP($N$3,температуры,плотности)*(1-1/(1+(M$6-$N$3)/($N$3-$A12)))/LOOKUP($A12,температуры,плотности) -> 1.62388303 | N12: =LOOKUP($N$3,температуры,плотности)/(1+(N$6-$N$3)/($N$3-$A12))/LOOKUP(N$6,температуры,плотности)*$N$4+LOOKUP($N$3,температуры,плотности)*(1-1/(1+(N$6-$N$3)/($N$3-$A12)))/LOOKUP($A12,температуры,плотности) -> 1.636491962 | O12: =LOOKUP($N$3,температуры,плотности)/(1+(O$6-$N$3)/($N$3-$A12))/LOOKUP(O$6,температуры,плотности)*$N$4+LOOKUP($N$3,температуры,плотности)*(1-1/(1+(O$6-$N$3)/($N$3-$A12)))/LOOKUP($A12,температуры,плотности) -> 1.649637893 | P12: =LOOKUP($N$3,температуры,плотности)/(1+(P$6-$N$3)/($N$3-$A12))/LOOKUP(P$6,температуры,плотности)*$N$4+LOOKUP($N$3,температуры,плотности)*(1-1/(1+(P$6-$N$3)/($N$3-$A12)))/LOOKUP($A12,температуры,плотности) -> 1.663310947 | Q12: =LOOKUP($N$3,температуры,плотности)/(1+(Q$6-$N$3)/($N$3-$A12))/LOOKUP(Q$6,температуры,плотности)*$N$4+LOOKUP($N$3,температуры,плотности)*(1-1/(1+(Q$6-$N$3)/($N$3-$A12)))/LOOKUP($A12,температуры,плотности) -> 1.677592258 | R12: =LOOKUP($N$3,температуры,плотности)/(1+(R$6-$N$3)/($N$3-$A12))/LOOKUP(R$6,температуры,плотности)*$N$4+LOOKUP($N$3,температуры,плотности)*(1-1/(1+(R$6-$N$3)/($N$3-$A12)))/LOOKUP($A12,температуры,плотности) -> 1.692570128 | S12: =LOOKUP($N$3,температуры,плотности)/(1+(S$6-$N$3)/($N$3-$A12))/LOOKUP(S$6,температуры,плотности)*$N$4+LOOKUP($N$3,температуры,плотности)*(1-1/(1+(S$6-$N$3)/($N$3-$A12)))/LOOKUP($A12,температуры,плотности) -> 1.708245131 | T12: =LOOKUP($N$3,температуры,плотности)/(1+(T$6-$N$3)/($N$3-$A12))/LOOKUP(T$6,температуры,плотности)*$N$4+LOOKUP($N$3,температуры,плотности)*(1-1/(1+(T$6-$N$3)/($N$3-$A12)))/LOOKUP($A12,температуры,плотности) -> 1.724667061 | U12: =LOOKUP($N$3,температуры,плотности)/(1+(U$6-$N$3)/($N$3-$A12))/LOOKUP(U$6,температуры,плотности)*$N$4+LOOKUP($N$3,температуры,плотности)*(1-1/(1+(U$6-$N$3)/($N$3-$A12)))/LOOKUP($A12,температуры,плотности) -> 1.741890569 | V12: =LOOKUP($N$3,температуры,плотности)/(1+(V$6-$N$3)/($N$3-$A12))/LOOKUP(V$6,температуры,плотности)*$N$4+LOOKUP($N$3,температуры,плотности)*(1-1/(1+(V$6-$N$3)/($N$3-$A12)))/LOOKUP($A12,температуры,плотности) -> 1.759975775 | W12: =LOOKUP($N$3,температуры,плотности)/(1+(W$6-$N$3)/($N$3-$A12))/LOOKUP(W$6,температуры,плотности)*$N$4+LOOKUP($N$3,температуры,плотности)*(1-1/(1+(W$6-$N$3)/($N$3-$A12)))/LOOKUP($A12,температуры,плотности) -> 1.77898896 | X12: =LOOKUP($N$3,температуры,плотности)/(1+(X$6-$N$3)/($N$3-$A12))/LOOKUP(X$6,температуры,плотности)*$N$4+LOOKUP($N$3,температуры,плотности)*(1-1/(1+(X$6-$N$3)/($N$3-$A12)))/LOOKUP($A12,температуры,плотности) -> 1.79905729 | Y12: =LOOKUP($N$3,температуры,плотности)/(1+(Y$6-$N$3)/($N$3-$A12))/LOOKUP(Y$6,температуры,плотности)*$N$4+LOOKUP($N$3,температуры,плотности)*(1-1/(1+(Y$6-$N$3)/($N$3-$A12)))/LOOKUP($A12,температуры,плотности) -> 1.82021085 | Z12: =LOOKUP($N$3,температуры,плотности)/(1+(Z$6-$N$3)/($N$3-$A12))/LOOKUP(Z$6,температуры,плотности)*$N$4+LOOKUP($N$3,температуры,плотности)*(1-1/(1+(Z$6-$N$3)/($N$3-$A12)))/LOOKUP($A12,температуры,плотности) -> 1.842540073 | AA12: =LOOKUP($N$3,температуры,плотности)/(1+(AA$6-$N$3)/($N$3-$A12))/LOOKUP(AA$6,температуры,плотности)*$N$4+LOOKUP($N$3,температуры,плотности)*(1-1/(1+(AA$6-$N$3)/($N$3-$A12)))/LOOKUP($A12,температуры,плотности) -> 1.866145731 | AB12: =LOOKUP($N$3,температуры,плотности)/(1+(AB$6-$N$3)/($N$3-$A12))/LOOKUP(AB$6,температуры,плотности)*$N$4+LOOKUP($N$3,температуры,плотности)*(1-1/(1+(AB$6-$N$3)/($N$3-$A12)))/LOOKUP($A12,температуры,плотности) -> 1.89114045 | AC12: =LOOKUP($N$3,температуры,плотности)/(1+(AC$6-$N$3)/($N$3-$A12))/LOOKUP(AC$6,температуры,плотности)*$N$4+LOOKUP($N$3,температуры,плотности)*(1-1/(1+(AC$6-$N$3)/($N$3-$A12)))/LOOKUP($A12,температуры,плотности) -> 1.917650507 | AI12: 13 | AJ12: 0.99935
A13: 14 | B13: =LOOKUP($N$3,температуры,плотности)/(1+(B$6-$N$3)/($N$3-$A13))/LOOKUP(B$6,температуры,плотности)*$N$4+LOOKUP($N$3,температуры,плотности)*(1-1/(1+(B$6-$N$3)/($N$3-$A13)))/LOOKUP($A13,температуры,плотности) -> 1.555683976 | C13: =LOOKUP($N$3,температуры,плотности)/(1+(C$6-$N$3)/($N$3-$A13))/LOOKUP(C$6,температуры,плотности)*$N$4+LOOKUP($N$3,температуры,плотности)*(1-1/(1+(C$6-$N$3)/($N$3-$A13)))/LOOKUP($A13,температуры,плотности) -> 1.564519844 | D13: =LOOKUP($N$3,температуры,плотности)/(1+(D$6-$N$3)/($N$3-$A13))/LOOKUP(D$6,температуры,плотности)*$N$4+LOOKUP($N$3,температуры,плотности)*(1-1/(1+(D$6-$N$3)/($N$3-$A13)))/LOOKUP($A13,температуры,плотности) -> 1.57365581 | E13: =LOOKUP($N$3,температуры,плотности)/(1+(E$6-$N$3)/($N$3-$A13))/LOOKUP(E$6,температуры,плотности)*$N$4+LOOKUP($N$3,температуры,плотности)*(1-1/(1+(E$6-$N$3)/($N$3-$A13)))/LOOKUP($A13,температуры,плотности) -> 1.583107395 | F13: =LOOKUP($N$3,температуры,плотности)/(1+(F$6-$N$3)/($N$3-$A13))/LOOKUP(F$6,температуры,плотности)*$N$4+LOOKUP($N$3,температуры,плотности)*(1-1/(1+(F$6-$N$3)/($N$3-$A13)))/LOOKUP($A13,температуры,плотности) -> 1.59289121 | G13: =LOOKUP($N$3,температуры,плотности)/(1+(G$6-$N$3)/($N$3-$A13))/LOOKUP(G$6,температуры,плотности)*$N$4+LOOKUP($N$3,температуры,плотности)*(1-1/(1+(G$6-$N$3)/($N$3-$A13)))/LOOKUP($A13,температуры,плотности) -> 1.603025051 | H13: =LOOKUP($N$3,температуры,плотности)/(1+(H$6-$N$3)/($N$3-$A13))/LOOKUP(H$6,температуры,плотности)*$N$4+LOOKUP($N$3,температуры,плотности)*(1-1/(1+(H$6-$N$3)/($N$3-$A13)))/LOOKUP($A13,температуры,плотности) -> 1.613569674 | I13: =LOOKUP($N$3,температуры,плотности)/(1+(I$6-$N$3)/($N$3-$A13))/LOOKUP(I$6,температуры,плотности)*$N$4+LOOKUP($N$3,температуры,плотности)*(1-1/(1+(I$6-$N$3)/($N$3-$A13)))/LOOKUP($A13,температуры,плотности) -> 1.624505364 | J13: =LOOKUP($N$3,температуры,плотности)/(1+(J$6-$N$3)/($N$3-$A13))/LOOKUP(J$6,температуры,плотности)*$N$4+LOOKUP($N$3,температуры,плотности)*(1-1/(1+(J$6-$N$3)/($N$3-$A13)))/LOOKUP($A13,температуры,плотности) -> 1.635854255 | K13: =LOOKUP($N$3,температуры,плотности)/(1+(K$6-$N$3)/($N$3-$A13))/LOOKUP(K$6,температуры,плотности)*$N$4+LOOKUP($N$3,температуры,плотности)*(1-1/(1+(K$6-$N$3)/($N$3-$A13)))/LOOKUP($A13,температуры,плотности) -> 1.647640185 | L13: =LOOKUP($N$3,температуры,плотности)/(1+(L$6-$N$3)/($N$3-$A13))/LOOKUP(L$6,температуры,плотности)*$N$4+LOOKUP($N$3,температуры,плотности)*(1-1/(1+(L$6-$N$3)/($N$3-$A13)))/LOOKUP($A13,температуры,плотности) -> 1.659888862 | M13: =LOOKUP($N$3,температуры,плотности)/(1+(M$6-$N$3)/($N$3-$A13))/LOOKUP(M$6,температуры,плотности)*$N$4+LOOKUP($N$3,температуры,плотности)*(1-1/(1+(M$6-$N$3)/($N$3-$A13)))/LOOKUP($A13,температуры,плотности) -> 1.672628048 | N13: =LOOKUP($N$3,температуры,плотности)/(1+(N$6-$N$3)/($N$3-$A13))/LOOKUP(N$6,температуры,плотности)*$N$4+LOOKUP($N$3,температуры,плотности)*(1-1/(1+(N$6-$N$3)/($N$3-$A13)))/LOOKUP($A13,температуры,плотности) -> 1.685934232 | O13: =LOOKUP($N$3,температуры,плотности)/(1+(O$6-$N$3)/($N$3-$A13))/LOOKUP(O$6,температуры,плотности)*$N$4+LOOKUP($N$3,температуры,плотности)*(1-1/(1+(O$6-$N$3)/($N$3-$A13)))/LOOKUP($A13,температуры,плотности) -> 1.699795324 | P13: =LOOKUP($N$3,температуры,плотности)/(1+(P$6-$N$3)/($N$3-$A13))/LOOKUP(P$6,температуры,плотности)*$N$4+LOOKUP($N$3,температуры,плотности)*(1-1/(1+(P$6-$N$3)/($N$3-$A13)))/LOOKUP($A13,температуры,плотности) -> 1.714198406 | Q13: =LOOKUP($N$3,температуры,плотности)/(1+(Q$6-$N$3)/($N$3-$A13))/LOOKUP(Q$6,температуры,плотности)*$N$4+LOOKUP($N$3,температуры,плотности)*(1-1/(1+(Q$6-$N$3)/($N$3-$A13)))/LOOKUP($A13,температуры,плотности) -> 1.729228318 | R13: =LOOKUP($N$3,температуры,плотности)/(1+(R$6-$N$3)/($N$3-$A13))/LOOKUP(R$6,температуры,плотности)*$N$4+LOOKUP($N$3,температуры,плотности)*(1-1/(1+(R$6-$N$3)/($N$3-$A13)))/LOOKUP($A13,температуры,плотности) -> 1.744977217 | S13: =LOOKUP($N$3,температуры,плотности)/(1+(S$6-$N$3)/($N$3-$A13))/LOOKUP(S$6,температуры,плотности)*$N$4+LOOKUP($N$3,температуры,плотности)*(1-1/(1+(S$6-$N$3)/($N$3-$A13)))/LOOKUP($A13,температуры,плотности) -> 1.761442498 | T13: =LOOKUP($N$3,температуры,плотности)/(1+(T$6-$N$3)/($N$3-$A13))/LOOKUP(T$6,температуры,плотности)*$N$4+LOOKUP($N$3,температуры,плотности)*(1-1/(1+(T$6-$N$3)/($N$3-$A13)))/LOOKUP($A13,температуры,плотности) -> 1.778674142 | U13: =LOOKUP($N$3,температуры,плотности)/(1+(U$6-$N$3)/($N$3-$A13))/LOOKUP(U$6,температуры,плотности)*$N$4+LOOKUP($N$3,температуры,плотности)*(1-1/(1+(U$6-$N$3)/($N$3-$A13)))/LOOKUP($A13,температуры,плотности) -> 1.796726888 | V13: =LOOKUP($N$3,температуры,плотности)/(1+(V$6-$N$3)/($N$3-$A13))/LOOKUP(V$6,температуры,плотности)*$N$4+LOOKUP($N$3,температуры,плотности)*(1-1/(1+(V$6-$N$3)/($N$3-$A13)))/LOOKUP($A13,температуры,плотности) -> 1.815660814 | W13: =LOOKUP($N$3,температуры,плотности)/(1+(W$6-$N$3)/($N$3-$A13))/LOOKUP(W$6,температуры,плотности)*$N$4+LOOKUP($N$3,температуры,плотности)*(1-1/(1+(W$6-$N$3)/($N$3-$A13)))/LOOKUP($A13,температуры,плотности) -> 1.83554201 | X13: =LOOKUP($N$3,температуры,плотности)/(1+(X$6-$N$3)/($N$3-$A13))/LOOKUP(X$6,температуры,плотности)*$N$4+LOOKUP($N$3,температуры,плотности)*(1-1/(1+(X$6-$N$3)/($N$3-$A13)))/LOOKUP($A13,температуры,плотности) -> 1.856501113 | Y13: =LOOKUP($N$3,температуры,плотности)/(1+(Y$6-$N$3)/($N$3-$A13))/LOOKUP(Y$6,температуры,плотности)*$N$4+LOOKUP($N$3,температуры,плотности)*(1-1/(1+(Y$6-$N$3)/($N$3-$A13)))/LOOKUP($A13,температуры,плотности) -> 1.878563814 | Z13: =LOOKUP($N$3,температуры,плотности)/(1+(Z$6-$N$3)/($N$3-$A13))/LOOKUP(Z$6,температуры,плотности)*$N$4+LOOKUP($N$3,температуры,плотности)*(1-1/(1+(Z$6-$N$3)/($N$3-$A13)))/LOOKUP($A13,температуры,плотности) -> 1.901819593 | AA13: =LOOKUP($N$3,температуры,плотности)/(1+(AA$6-$N$3)/($N$3-$A13))/LOOKUP(AA$6,температуры,плотности)*$N$4+LOOKUP($N$3,температуры,плотности)*(1-1/(1+(AA$6-$N$3)/($N$3-$A13)))/LOOKUP($A13,температуры,плотности) -> 1.926367872 | AB13: =LOOKUP($N$3,температуры,плотности)/(1+(AB$6-$N$3)/($N$3-$A13))/LOOKUP(AB$6,температуры,плотности)*$N$4+LOOKUP($N$3,температуры,плотности)*(1-1/(1+(AB$6-$N$3)/($N$3-$A13)))/LOOKUP($A13,температуры,плотности) -> 1.952319436 | AC13: =LOOKUP($N$3,температуры,плотности)/(1+(AC$6-$N$3)/($N$3-$A13))/LOOKUP(AC$6,температуры,плотности)*$N$4+LOOKUP($N$3,температуры,плотности)*(1-1/(1+(AC$6-$N$3)/($N$3-$A13)))/LOOKUP($A13,температуры,плотности) -> 1.979798104 | AI13: 14 | AJ13: 0.9992
A14: 13 | B14: =LOOKUP($N$3,температуры,плотности)/(1+(B$6-$N$3)/($N$3-$A14))/LOOKUP(B$6,температуры,плотности)*$N$4+LOOKUP($N$3,температуры,плотности)*(1-1/(1+(B$6-$N$3)/($N$3-$A14)))/LOOKUP($A14,температуры,плотности) -> 1.596460235 | C14: =LOOKUP($N$3,температуры,плотности)/(1+(C$6-$N$3)/($N$3-$A14))/LOOKUP(C$6,температуры,плотности)*$N$4+LOOKUP($N$3,температуры,плотности)*(1-1/(1+(C$6-$N$3)/($N$3-$A14)))/LOOKUP($A14,температуры,плотности) -> 1.605780914 | D14: =LOOKUP($N$3,температуры,плотности)/(1+(D$6-$N$3)/($N$3-$A14))/LOOKUP(D$6,температуры,плотности)*$N$4+LOOKUP($N$3,температуры,плотности)*(1-1/(1+(D$6-$N$3)/($N$3-$A14)))/LOOKUP($A14,температуры,плотности) -> 1.615412902 | E14: =LOOKUP($N$3,температуры,плотности)/(1+(E$6-$N$3)/($N$3-$A14))/LOOKUP(E$6,температуры,плотности)*$N$4+LOOKUP($N$3,температуры,плотности)*(1-1/(1+(E$6-$N$3)/($N$3-$A14)))/LOOKUP($A14,температуры,плотности) -> 1.625372025 | F14: =LOOKUP($N$3,температуры,плотности)/(1+(F$6-$N$3)/($N$3-$A14))/LOOKUP(F$6,температуры,плотности)*$N$4+LOOKUP($N$3,температуры,плотности)*(1-1/(1+(F$6-$N$3)/($N$3-$A14)))/LOOKUP($A14,температуры,плотности) -> 1.635675205 | G14: =LOOKUP($N$3,температуры,плотности)/(1+(G$6-$N$3)/($N$3-$A14))/LOOKUP(G$6,температуры,плотности)*$N$4+LOOKUP($N$3,температуры,плотности)*(1-1/(1+(G$6-$N$3)/($N$3-$A14)))/LOOKUP($A14,температуры,плотности) -> 1.646340547 | H14: =LOOKUP($N$3,температуры,плотности)/(1+(H$6-$N$3)/($N$3-$A14))/LOOKUP(H$6,температуры,плотности)*$N$4+LOOKUP($N$3,температуры,плотности)*(1-1/(1+(H$6-$N$3)/($N$3-$A14)))/LOOKUP($A14,температуры,плотности) -> 1.657432094 | I14: =LOOKUP($N$3,температуры,плотности)/(1+(I$6-$N$3)/($N$3-$A14))/LOOKUP(I$6,температуры,плотности)*$N$4+LOOKUP($N$3,температуры,плотности)*(1-1/(1+(I$6-$N$3)/($N$3-$A14)))/LOOKUP($A14,температуры,плотности) -> 1.668927531 | J14: =LOOKUP($N$3,температуры,плотности)/(1+(J$6-$N$3)/($N$3-$A14))/LOOKUP(J$6,температуры,плотности)*$N$4+LOOKUP($N$3,температуры,плотности)*(1-1/(1+(J$6-$N$3)/($N$3-$A14)))/LOOKUP($A14,температуры,плотности) -> 1.680849297 | K14: =LOOKUP($N$3,температуры,плотности)/(1+(K$6-$N$3)/($N$3-$A14))/LOOKUP(K$6,температуры,плотности)*$N$4+LOOKUP($N$3,температуры,плотности)*(1-1/(1+(K$6-$N$3)/($N$3-$A14)))/LOOKUP($A14,температуры,плотности) -> 1.693221523 | L14: =LOOKUP($N$3,температуры,плотности)/(1+(L$6-$N$3)/($N$3-$A14))/LOOKUP(L$6,температуры,плотности)*$N$4+LOOKUP($N$3,температуры,плотности)*(1-1/(1+(L$6-$N$3)/($N$3-$A14)))/LOOKUP($A14,температуры,плотности) -> 1.706070195 | M14: =LOOKUP($N$3,температуры,плотности)/(1+(M$6-$N$3)/($N$3-$A14))/LOOKUP(M$6,температуры,плотности)*$N$4+LOOKUP($N$3,температуры,плотности)*(1-1/(1+(M$6-$N$3)/($N$3-$A14)))/LOOKUP($A14,температуры,плотности) -> 1.719423338 | N14: =LOOKUP($N$3,температуры,плотности)/(1+(N$6-$N$3)/($N$3-$A14))/LOOKUP(N$6,температуры,плотности)*$N$4+LOOKUP($N$3,температуры,плотности)*(1-1/(1+(N$6-$N$3)/($N$3-$A14)))/LOOKUP($A14,температуры,плотности) -> 1.733360888 | O14: =LOOKUP($N$3,температуры,плотности)/(1+(O$6-$N$3)/($N$3-$A14))/LOOKUP(O$6,температуры,плотности)*$N$4+LOOKUP($N$3,температуры,плотности)*(1-1/(1+(O$6-$N$3)/($N$3-$A14)))/LOOKUP($A14,температуры,плотности) -> 1.747867833 | P14: =LOOKUP($N$3,температуры,плотности)/(1+(P$6-$N$3)/($N$3-$A14))/LOOKUP(P$6,температуры,плотности)*$N$4+LOOKUP($N$3,температуры,плотности)*(1-1/(1+(P$6-$N$3)/($N$3-$A14)))/LOOKUP($A14,температуры,плотности) -> 1.762928129 | Q14: =LOOKUP($N$3,температуры,плотности)/(1+(Q$6-$N$3)/($N$3-$A14))/LOOKUP(Q$6,температуры,плотности)*$N$4+LOOKUP($N$3,температуры,плотности)*(1-1/(1+(Q$6-$N$3)/($N$3-$A14)))/LOOKUP($A14,температуры,плотности) -> 1.778629939 | R14: =LOOKUP($N$3,температуры,плотности)/(1+(R$6-$N$3)/($N$3-$A14))/LOOKUP(R$6,температуры,плотности)*$N$4+LOOKUP($N$3,температуры,плотности)*(1-1/(1+(R$6-$N$3)/($N$3-$A14)))/LOOKUP($A14,температуры,плотности) -> 1.795068853 | S14: =LOOKUP($N$3,температуры,плотности)/(1+(S$6-$N$3)/($N$3-$A14))/LOOKUP(S$6,температуры,плотности)*$N$4+LOOKUP($N$3,температуры,плотности)*(1-1/(1+(S$6-$N$3)/($N$3-$A14)))/LOOKUP($A14,температуры,плотности) -> 1.812238945 | T14: =LOOKUP($N$3,температуры,плотности)/(1+(T$6-$N$3)/($N$3-$A14))/LOOKUP(T$6,температуры,плотности)*$N$4+LOOKUP($N$3,температуры,плотности)*(1-1/(1+(T$6-$N$3)/($N$3-$A14)))/LOOKUP($A14,температуры,плотности) -> 1.830190066 | U14: =LOOKUP($N$3,температуры,плотности)/(1+(U$6-$N$3)/($N$3-$A14))/LOOKUP(U$6,температуры,плотности)*$N$4+LOOKUP($N$3,температуры,плотности)*(1-1/(1+(U$6-$N$3)/($N$3-$A14)))/LOOKUP($A14,температуры,плотности) -> 1.848976705 | V14: =LOOKUP($N$3,температуры,плотности)/(1+(V$6-$N$3)/($N$3-$A14))/LOOKUP(V$6,температуры,плотности)*$N$4+LOOKUP($N$3,температуры,плотности)*(1-1/(1+(V$6-$N$3)/($N$3-$A14)))/LOOKUP($A14,температуры,плотности) -> 1.868658542 | W14: =LOOKUP($N$3,температуры,плотности)/(1+(W$6-$N$3)/($N$3-$A14))/LOOKUP(W$6,температуры,плотности)*$N$4+LOOKUP($N$3,температуры,плотности)*(1-1/(1+(W$6-$N$3)/($N$3-$A14)))/LOOKUP($A14,температуры,плотности) -> 1.889301079 | X14: =LOOKUP($N$3,температуры,плотности)/(1+(X$6-$N$3)/($N$3-$A14))/LOOKUP(X$6,температуры,плотности)*$N$4+LOOKUP($N$3,температуры,плотности)*(1-1/(1+(X$6-$N$3)/($N$3-$A14)))/LOOKUP($A14,температуры,плотности) -> 1.911037815 | Y14: =LOOKUP($N$3,температуры,плотности)/(1+(Y$6-$N$3)/($N$3-$A14))/LOOKUP(Y$6,температуры,плотности)*$N$4+LOOKUP($N$3,температуры,плотности)*(1-1/(1+(Y$6-$N$3)/($N$3-$A14)))/LOOKUP($A14,температуры,плотности) -> 1.933889773 | Z14: =LOOKUP($N$3,температуры,плотности)/(1+(Z$6-$N$3)/($N$3-$A14))/LOOKUP(Z$6,температуры,плотности)*$N$4+LOOKUP($N$3,температуры,плотности)*(1-1/(1+(Z$6-$N$3)/($N$3-$A14)))/LOOKUP($A14,температуры,плотности) -> 1.957944997 | AA14: =LOOKUP($N$3,температуры,плотности)/(1+(AA$6-$N$3)/($N$3-$A14))/LOOKUP(AA$6,температуры,плотности)*$N$4+LOOKUP($N$3,температуры,плотности)*(1-1/(1+(AA$6-$N$3)/($N$3-$A14)))/LOOKUP($A14,температуры,плотности) -> 1.983301046 | AB14: =LOOKUP($N$3,температуры,плотности)/(1+(AB$6-$N$3)/($N$3-$A14))/LOOKUP(AB$6,температуры,плотности)*$N$4+LOOKUP($N$3,температуры,плотности)*(1-1/(1+(AB$6-$N$3)/($N$3-$A14)))/LOOKUP($A14,температуры,плотности) -> 2.010066324 | AC14: =LOOKUP($N$3,температуры,плотности)/(1+(AC$6-$N$3)/($N$3-$A14))/LOOKUP(AC$6,температуры,плотности)*$N$4+LOOKUP($N$3,температуры,плотности)*(1-1/(1+(AC$6-$N$3)/($N$3-$A14)))/LOOKUP($A14,температуры,плотности) -> 2.038361619 | AI14: 15 | AJ14: 0.9991
A15: 12 | B15: =LOOKUP($N$3,температуры,плотности)/(1+(B$6-$N$3)/($N$3-$A15))/LOOKUP(B$6,температуры,плотности)*$N$4+LOOKUP($N$3,температуры,плотности)*(1-1/(1+(B$6-$N$3)/($N$3-$A15)))/LOOKUP($A15,температуры,плотности) -> 1.635942045 | C15: =LOOKUP($N$3,температуры,плотности)/(1+(C$6-$N$3)/($N$3-$A15))/LOOKUP(C$6,температуры,плотности)*$N$4+LOOKUP($N$3,температуры,плотности)*(1-1/(1+(C$6-$N$3)/($N$3-$A15)))/LOOKUP($A15,температуры,плотности) -> 1.645711018 | D15: =LOOKUP($N$3,температуры,плотности)/(1+(D$6-$N$3)/($N$3-$A15))/LOOKUP(D$6,температуры,плотности)*$N$4+LOOKUP($N$3,температуры,плотности)*(1-1/(1+(D$6-$N$3)/($N$3-$A15)))/LOOKUP($A15,температуры,плотности) -> 1.655800944 | E15: =LOOKUP($N$3,температуры,плотности)/(1+(E$6-$N$3)/($N$3-$A15))/LOOKUP(E$6,температуры,плотности)*$N$4+LOOKUP($N$3,температуры,плотности)*(1-1/(1+(E$6-$N$3)/($N$3-$A15)))/LOOKUP($A15,температуры,плотности) -> 1.66622787 | F15: =LOOKUP($N$3,температуры,плотности)/(1+(F$6-$N$3)/($N$3-$A15))/LOOKUP(F$6,температуры,плотности)*$N$4+LOOKUP($N$3,температуры,плотности)*(1-1/(1+(F$6-$N$3)/($N$3-$A15)))/LOOKUP($A15,температуры,плотности) -> 1.67700893 | G15: =LOOKUP($N$3,температуры,плотности)/(1+(G$6-$N$3)/($N$3-$A15))/LOOKUP(G$6,температуры,плотности)*$N$4+LOOKUP($N$3,температуры,плотности)*(1-1/(1+(G$6-$N$3)/($N$3-$A15)))/LOOKUP($A15,температуры,плотности) -> 1.688162441 | H15: =LOOKUP($N$3,температуры,плотности)/(1+(H$6-$N$3)/($N$3-$A15))/LOOKUP(H$6,температуры,плотности)*$N$4+LOOKUP($N$3,температуры,плотности)*(1-1/(1+(H$6-$N$3)/($N$3-$A15)))/LOOKUP($A15,температуры,плотности) -> 1.699755516 | I15: =LOOKUP($N$3,температуры,плотности)/(1+(I$6-$N$3)/($N$3-$A15))/LOOKUP(I$6,температуры,плотности)*$N$4+LOOKUP($N$3,температуры,плотности)*(1-1/(1+(I$6-$N$3)/($N$3-$A15)))/LOOKUP($A15,температуры,плотности) -> 1.711763227 | J15: =LOOKUP($N$3,температуры,плотности)/(1+(J$6-$N$3)/($N$3-$A15))/LOOKUP(J$6,температуры,плотности)*$N$4+LOOKUP($N$3,температуры,плотности)*(1-1/(1+(J$6-$N$3)/($N$3-$A15)))/LOOKUP($A15,температуры,плотности) -> 1.724208191 | K15: =LOOKUP($N$3,температуры,плотности)/(1+(K$6-$N$3)/($N$3-$A15))/LOOKUP(K$6,температуры,плотности)*$N$4+LOOKUP($N$3,температуры,плотности)*(1-1/(1+(K$6-$N$3)/($N$3-$A15)))/LOOKUP($A15,температуры,плотности) -> 1.737114697 | L15: =LOOKUP($N$3,температуры,плотности)/(1+(L$6-$N$3)/($N$3-$A15))/LOOKUP(L$6,температуры,плотности)*$N$4+LOOKUP($N$3,температуры,плотности)*(1-1/(1+(L$6-$N$3)/($N$3-$A15)))/LOOKUP($A15,температуры,плотности) -> 1.75050887 | M15: =LOOKUP($N$3,температуры,плотности)/(1+(M$6-$N$3)/($N$3-$A15))/LOOKUP(M$6,температуры,плотности)*$N$4+LOOKUP($N$3,температуры,плотности)*(1-1/(1+(M$6-$N$3)/($N$3-$A15)))/LOOKUP($A15,температуры,плотности) -> 1.764418843 | N15: =LOOKUP($N$3,температуры,плотности)/(1+(N$6-$N$3)/($N$3-$A15))/LOOKUP(N$6,температуры,плотности)*$N$4+LOOKUP($N$3,температуры,плотности)*(1-1/(1+(N$6-$N$3)/($N$3-$A15)))/LOOKUP($A15,температуры,плотности) -> 1.778927708 | O15: =LOOKUP($N$3,температуры,плотности)/(1+(O$6-$N$3)/($N$3-$A15))/LOOKUP(O$6,температуры,плотности)*$N$4+LOOKUP($N$3,температуры,плотности)*(1-1/(1+(O$6-$N$3)/($N$3-$A15)))/LOOKUP($A15,температуры,плотности) -> 1.794017475 | P15: =LOOKUP($N$3,температуры,плотности)/(1+(P$6-$N$3)/($N$3-$A15))/LOOKUP(P$6,температуры,плотности)*$N$4+LOOKUP($N$3,температуры,плотности)*(1-1/(1+(P$6-$N$3)/($N$3-$A15)))/LOOKUP($A15,температуры,плотности) -> 1.809668917 | Q15: =LOOKUP($N$3,температуры,плотности)/(1+(Q$6-$N$3)/($N$3-$A15))/LOOKUP(Q$6,температуры,плотности)*$N$4+LOOKUP($N$3,температуры,плотности)*(1-1/(1+(Q$6-$N$3)/($N$3-$A15)))/LOOKUP($A15,температуры,плотности) -> 1.825973192 | R15: =LOOKUP($N$3,температуры,плотности)/(1+(R$6-$N$3)/($N$3-$A15))/LOOKUP(R$6,температуры,плотности)*$N$4+LOOKUP($N$3,температуры,плотности)*(1-1/(1+(R$6-$N$3)/($N$3-$A15)))/LOOKUP($A15,температуры,плотности) -> 1.843028964 | S15: =LOOKUP($N$3,температуры,плотности)/(1+(S$6-$N$3)/($N$3-$A15))/LOOKUP(S$6,температуры,плотности)*$N$4+LOOKUP($N$3,температуры,плотности)*(1-1/(1+(S$6-$N$3)/($N$3-$A15)))/LOOKUP($A15,температуры,плотности) -> 1.860826883 | T15: =LOOKUP($N$3,температуры,плотности)/(1+(T$6-$N$3)/($N$3-$A15))/LOOKUP(T$6,температуры,плотности)*$N$4+LOOKUP($N$3,температуры,плотности)*(1-1/(1+(T$6-$N$3)/($N$3-$A15)))/LOOKUP($A15,температуры,плотности) -> 1.879416425 | U15: =LOOKUP($N$3,температуры,плотности)/(1+(U$6-$N$3)/($N$3-$A15))/LOOKUP(U$6,температуры,плотности)*$N$4+LOOKUP($N$3,температуры,плотности)*(1-1/(1+(U$6-$N$3)/($N$3-$A15)))/LOOKUP($A15,температуры,плотности) -> 1.898851563 | V15: =LOOKUP($N$3,температуры,плотности)/(1+(V$6-$N$3)/($N$3-$A15))/LOOKUP(V$6,температуры,плотности)*$N$4+LOOKUP($N$3,температуры,плотности)*(1-1/(1+(V$6-$N$3)/($N$3-$A15)))/LOOKUP($A15,температуры,плотности) -> 1.919191291 | W15: =LOOKUP($N$3,температуры,плотности)/(1+(W$6-$N$3)/($N$3-$A15))/LOOKUP(W$6,температуры,плотности)*$N$4+LOOKUP($N$3,температуры,плотности)*(1-1/(1+(W$6-$N$3)/($N$3-$A15)))/LOOKUP($A15,температуры,плотности) -> 1.940500223 | X15: =LOOKUP($N$3,температуры,плотности)/(1+(X$6-$N$3)/($N$3-$A15))/LOOKUP(X$6,температуры,плотности)*$N$4+LOOKUP($N$3,температуры,плотности)*(1-1/(1+(X$6-$N$3)/($N$3-$A15)))/LOOKUP($A15,температуры,плотности) -> 1.962914221 | Y15: =LOOKUP($N$3,температуры,плотности)/(1+(Y$6-$N$3)/($N$3-$A15))/LOOKUP(Y$6,температуры,плотности)*$N$4+LOOKUP($N$3,температуры,плотности)*(1-1/(1+(Y$6-$N$3)/($N$3-$A15)))/LOOKUP($A15,температуры,плотности) -> 1.986449465 | Z15: =LOOKUP($N$3,температуры,плотности)/(1+(Z$6-$N$3)/($N$3-$A15))/LOOKUP(Z$6,температуры,плотности)*$N$4+LOOKUP($N$3,температуры,плотности)*(1-1/(1+(Z$6-$N$3)/($N$3-$A15)))/LOOKUP($A15,температуры,плотности) -> 2.011192204 | AA15: =LOOKUP($N$3,температуры,плотности)/(1+(AA$6-$N$3)/($N$3-$A15))/LOOKUP(AA$6,температуры,плотности)*$N$4+LOOKUP($N$3,температуры,плотности)*(1-1/(1+(AA$6-$N$3)/($N$3-$A15)))/LOOKUP($A15,температуры,плотности) -> 2.037237767 | AB15: =LOOKUP($N$3,температуры,плотности)/(1+(AB$6-$N$3)/($N$3-$A15))/LOOKUP(AB$6,температуры,плотности)*$N$4+LOOKUP($N$3,температуры,плотности)*(1-1/(1+(AB$6-$N$3)/($N$3-$A15)))/LOOKUP($A15,температуры,плотности) -> 2.064691786 | AC15: =LOOKUP($N$3,температуры,плотности)/(1+(AC$6-$N$3)/($N$3-$A15))/LOOKUP(AC$6,температуры,плотности)*$N$4+LOOKUP($N$3,температуры,плотности)*(1-1/(1+(AC$6-$N$3)/($N$3-$A15)))/LOOKUP($A15,температуры,плотности) -> 2.093671633 | AI15: 16 | AJ15: 0.999
A16: 11 | B16: =LOOKUP($N$3,температуры,плотности)/(1+(B$6-$N$3)/($N$3-$A16))/LOOKUP(B$6,температуры,плотности)*$N$4+LOOKUP($N$3,температуры,плотности)*(1-1/(1+(B$6-$N$3)/($N$3-$A16)))/LOOKUP($A16,температуры,плотности) -> 1.674229061 | C16: =LOOKUP($N$3,температуры,плотности)/(1+(C$6-$N$3)/($N$3-$A16))/LOOKUP(C$6,температуры,плотности)*$N$4+LOOKUP($N$3,температуры,плотности)*(1-1/(1+(C$6-$N$3)/($N$3-$A16)))/LOOKUP($A16,температуры,плотности) -> 1.684412337 | D16: =LOOKUP($N$3,температуры,плотности)/(1+(D$6-$N$3)/($N$3-$A16))/LOOKUP(D$6,температуры,плотности)*$N$4+LOOKUP($N$3,температуры,плотности)*(1-1/(1+(D$6-$N$3)/($N$3-$A16)))/LOOKUP($A16,температуры,плотности) -> 1.694924805 | E16: =LOOKUP($N$3,температуры,плотности)/(1+(E$6-$N$3)/($N$3-$A16))/LOOKUP(E$6,температуры,плотности)*$N$4+LOOKUP($N$3,температуры,плотности)*(1-1/(1+(E$6-$N$3)/($N$3-$A16)))/LOOKUP($A16,температуры,плотности) -> 1.705782653 | F16: =LOOKUP($N$3,температуры,плотности)/(1+(F$6-$N$3)/($N$3-$A16))/LOOKUP(F$6,температуры,плотности)*$N$4+LOOKUP($N$3,температуры,плотности)*(1-1/(1+(F$6-$N$3)/($N$3-$A16)))/LOOKUP($A16,температуры,плотности) -> 1.717003148 | G16: =LOOKUP($N$3,температуры,плотности)/(1+(G$6-$N$3)/($N$3-$A16))/LOOKUP(G$6,температуры,плотности)*$N$4+LOOKUP($N$3,температуры,плотности)*(1-1/(1+(G$6-$N$3)/($N$3-$A16)))/LOOKUP($A16,температуры,плотности) -> 1.728604729 | H16: =LOOKUP($N$3,температуры,плотности)/(1+(H$6-$N$3)/($N$3-$A16))/LOOKUP(H$6,температуры,плотности)*$N$4+LOOKUP($N$3,температуры,плотности)*(1-1/(1+(H$6-$N$3)/($N$3-$A16)))/LOOKUP($A16,температуры,плотности) -> 1.740657391 | I16: =LOOKUP($N$3,температуры,плотности)/(1+(I$6-$N$3)/($N$3-$A16))/LOOKUP(I$6,температуры,плотности)*$N$4+LOOKUP($N$3,температуры,плотности)*(1-1/(1+(I$6-$N$3)/($N$3-$A16)))/LOOKUP($A16,температуры,плотности) -> 1.753133586 | J16: =LOOKUP($N$3,температуры,плотности)/(1+(J$6-$N$3)/($N$3-$A16))/LOOKUP(J$6,температуры,плотности)*$N$4+LOOKUP($N$3,температуры,плотности)*(1-1/(1+(J$6-$N$3)/($N$3-$A16)))/LOOKUP($A16,температуры,плотности) -> 1.766056003 | K16: =LOOKUP($N$3,температуры,плотности)/(1+(K$6-$N$3)/($N$3-$A16))/LOOKUP(K$6,температуры,плотности)*$N$4+LOOKUP($N$3,температуры,плотности)*(1-1/(1+(K$6-$N$3)/($N$3-$A16)))/LOOKUP($A16,температуры,плотности) -> 1.77944898 | L16: =LOOKUP($N$3,температуры,плотности)/(1+(L$6-$N$3)/($N$3-$A16))/LOOKUP(L$6,температуры,плотности)*$N$4+LOOKUP($N$3,температуры,плотности)*(1-1/(1+(L$6-$N$3)/($N$3-$A16)))/LOOKUP($A16,температуры,плотности) -> 1.793338657 | M16: =LOOKUP($N$3,температуры,плотности)/(1+(M$6-$N$3)/($N$3-$A16))/LOOKUP(M$6,температуры,плотности)*$N$4+LOOKUP($N$3,температуры,плотности)*(1-1/(1+(M$6-$N$3)/($N$3-$A16)))/LOOKUP($A16,температуры,плотности) -> 1.807753149 | N16: =LOOKUP($N$3,температуры,плотности)/(1+(N$6-$N$3)/($N$3-$A16))/LOOKUP(N$6,температуры,плотности)*$N$4+LOOKUP($N$3,температуры,плотности)*(1-1/(1+(N$6-$N$3)/($N$3-$A16)))/LOOKUP($A16,температуры,плотности) -> 1.822778448 | O16: =LOOKUP($N$3,температуры,плотности)/(1+(O$6-$N$3)/($N$3-$A16))/LOOKUP(O$6,температуры,плотности)*$N$4+LOOKUP($N$3,температуры,плотности)*(1-1/(1+(O$6-$N$3)/($N$3-$A16)))/LOOKUP($A16,температуры,плотности) -> 1.838393554 | P16: =LOOKUP($N$3,температуры,плотности)/(1+(P$6-$N$3)/($N$3-$A16))/LOOKUP(P$6,температуры,плотности)*$N$4+LOOKUP($N$3,температуры,плотности)*(1-1/(1+(P$6-$N$3)/($N$3-$A16)))/LOOKUP($A16,температуры,плотности) -> 1.854576027 | Q16: =LOOKUP($N$3,температуры,плотности)/(1+(Q$6-$N$3)/($N$3-$A16))/LOOKUP(Q$6,температуры,плотности)*$N$4+LOOKUP($N$3,температуры,плотности)*(1-1/(1+(Q$6-$N$3)/($N$3-$A16)))/LOOKUP($A16,температуры,плотности) -> 1.871419735 | R16: =LOOKUP($N$3,температуры,плотности)/(1+(R$6-$N$3)/($N$3-$A16))/LOOKUP(R$6,температуры,плотности)*$N$4+LOOKUP($N$3,температуры,плотности)*(1-1/(1+(R$6-$N$3)/($N$3-$A16)))/LOOKUP($A16,температуры,плотности) -> 1.889026106 | S16: =LOOKUP($N$3,температуры,плотности)/(1+(S$6-$N$3)/($N$3-$A16))/LOOKUP(S$6,температуры,плотности)*$N$4+LOOKUP($N$3,температуры,плотности)*(1-1/(1+(S$6-$N$3)/($N$3-$A16)))/LOOKUP($A16,температуры,плотности) -> 1.907382309 | T16: =LOOKUP($N$3,температуры,плотности)/(1+(T$6-$N$3)/($N$3-$A16))/LOOKUP(T$6,температуры,плотности)*$N$4+LOOKUP($N$3,температуры,плотности)*(1-1/(1+(T$6-$N$3)/($N$3-$A16)))/LOOKUP($A16,температуры,плотности) -> 1.926537244 | U16: =LOOKUP($N$3,температуры,плотности)/(1+(U$6-$N$3)/($N$3-$A16))/LOOKUP(U$6,температуры,плотности)*$N$4+LOOKUP($N$3,температуры,плотности)*(1-1/(1+(U$6-$N$3)/($N$3-$A16)))/LOOKUP($A16,температуры,плотности) -> 1.94654416 | V16: =LOOKUP($N$3,температуры,плотности)/(1+(V$6-$N$3)/($N$3-$A16))/LOOKUP(V$6,температуры,плотности)*$N$4+LOOKUP($N$3,температуры,плотности)*(1-1/(1+(V$6-$N$3)/($N$3-$A16)))/LOOKUP($A16,температуры,плотности) -> 1.967461144 | W16: =LOOKUP($N$3,температуры,плотности)/(1+(W$6-$N$3)/($N$3-$A16))/LOOKUP(W$6,температуры,плотности)*$N$4+LOOKUP($N$3,температуры,плотности)*(1-1/(1+(W$6-$N$3)/($N$3-$A16)))/LOOKUP($A16,температуры,плотности) -> 1.989351689 | X16: =LOOKUP($N$3,температуры,плотности)/(1+(X$6-$N$3)/($N$3-$A16))/LOOKUP(X$6,температуры,плотности)*$N$4+LOOKUP($N$3,температуры,плотности)*(1-1/(1+(X$6-$N$3)/($N$3-$A16)))/LOOKUP($A16,температуры,плотности) -> 2.012353611 | Y16: =LOOKUP($N$3,температуры,плотности)/(1+(Y$6-$N$3)/($N$3-$A16))/LOOKUP(Y$6,температуры,плотности)*$N$4+LOOKUP($N$3,температуры,плотности)*(1-1/(1+(Y$6-$N$3)/($N$3-$A16)))/LOOKUP($A16,температуры,плотности) -> 2.036478153 | Z16: =LOOKUP($N$3,температуры,плотности)/(1+(Z$6-$N$3)/($N$3-$A16))/LOOKUP(Z$6,температуры,плотности)*$N$4+LOOKUP($N$3,температуры,плотности)*(1-1/(1+(Z$6-$N$3)/($N$3-$A16)))/LOOKUP($A16,температуры,плотности) -> 2.061809509 | AA16: =LOOKUP($N$3,температуры,плотности)/(1+(AA$6-$N$3)/($N$3-$A16))/LOOKUP(AA$6,температуры,плотности)*$N$4+LOOKUP($N$3,температуры,плотности)*(1-1/(1+(AA$6-$N$3)/($N$3-$A16)))/LOOKUP($A16,температуры,плотности) -> 2.088440512 | AB16: =LOOKUP($N$3,температуры,плотности)/(1+(AB$6-$N$3)/($N$3-$A16))/LOOKUP(AB$6,температуры,плотности)*$N$4+LOOKUP($N$3,температуры,плотности)*(1-1/(1+(AB$6-$N$3)/($N$3-$A16)))/LOOKUP($A16,температуры,плотности) -> 2.116473763 | AC16: =LOOKUP($N$3,температуры,плотности)/(1+(AC$6-$N$3)/($N$3-$A16))/LOOKUP(AC$6,температуры,плотности)*$N$4+LOOKUP($N$3,температуры,плотности)*(1-1/(1+(AC$6-$N$3)/($N$3-$A16)))/LOOKUP($A16,температуры,плотности) -> 2.146022958 | AI16: 17 | AJ16: 0.9988
A17: 10 | B17: =LOOKUP($N$3,температуры,плотности)/(1+(B$6-$N$3)/($N$3-$A17))/LOOKUP(B$6,температуры,плотности)*$N$4+LOOKUP($N$3,температуры,плотности)*(1-1/(1+(B$6-$N$3)/($N$3-$A17)))/LOOKUP($A17,температуры,плотности) -> 1.71133803 | C17: =LOOKUP($N$3,температуры,плотности)/(1+(C$6-$N$3)/($N$3-$A17))/LOOKUP(C$6,температуры,плотности)*$N$4+LOOKUP($N$3,температуры,плотности)*(1-1/(1+(C$6-$N$3)/($N$3-$A17)))/LOOKUP($A17,температуры,плотности) -> 1.721904256 | D17: =LOOKUP($N$3,температуры,плотности)/(1+(D$6-$N$3)/($N$3-$A17))/LOOKUP(D$6,температуры,плотности)*$N$4+LOOKUP($N$3,температуры,плотности)*(1-1/(1+(D$6-$N$3)/($N$3-$A17)))/LOOKUP($A17,температуры,плотности) -> 1.732806654 | E17: =LOOKUP($N$3,температуры,плотности)/(1+(E$6-$N$3)/($N$3-$A17))/LOOKUP(E$6,температуры,плотности)*$N$4+LOOKUP($N$3,температуры,плотности)*(1-1/(1+(E$6-$N$3)/($N$3-$A17)))/LOOKUP($A17,температуры,плотности) -> 1.74406149 | F17: =LOOKUP($N$3,температуры,плотности)/(1+(F$6-$N$3)/($N$3-$A17))/LOOKUP(F$6,температуры,плотности)*$N$4+LOOKUP($N$3,температуры,плотности)*(1-1/(1+(F$6-$N$3)/($N$3-$A17)))/LOOKUP($A17,температуры,плотности) -> 1.755686095 | G17: =LOOKUP($N$3,температуры,плотности)/(1+(G$6-$N$3)/($N$3-$A17))/LOOKUP(G$6,температуры,плотности)*$N$4+LOOKUP($N$3,температуры,плотности)*(1-1/(1+(G$6-$N$3)/($N$3-$A17)))/LOOKUP($A17,температуры,плотности) -> 1.767698956 | H17: =LOOKUP($N$3,температуры,плотности)/(1+(H$6-$N$3)/($N$3-$A17))/LOOKUP(H$6,температуры,плотности)*$N$4+LOOKUP($N$3,температуры,плотности)*(1-1/(1+(H$6-$N$3)/($N$3-$A17)))/LOOKUP($A17,температуры,плотности) -> 1.780172777 | I17: =LOOKUP($N$3,температуры,плотности)/(1+(I$6-$N$3)/($N$3-$A17))/LOOKUP(I$6,температуры,плотности)*$N$4+LOOKUP($N$3,температуры,плотности)*(1-1/(1+(I$6-$N$3)/($N$3-$A17)))/LOOKUP($A17,температуры,плотности) -> 1.793077396 | J17: =LOOKUP($N$3,температуры,плотности)/(1+(J$6-$N$3)/($N$3-$A17))/LOOKUP(J$6,температуры,плотности)*$N$4+LOOKUP($N$3,температуры,плотности)*(1-1/(1+(J$6-$N$3)/($N$3-$A17)))/LOOKUP($A17,температуры,плотности) -> 1.806435486 | K17: =LOOKUP($N$3,температуры,плотности)/(1+(K$6-$N$3)/($N$3-$A17))/LOOKUP(K$6,температуры,плотности)*$N$4+LOOKUP($N$3,температуры,плотности)*(1-1/(1+(K$6-$N$3)/($N$3-$A17)))/LOOKUP($A17,температуры,плотности) -> 1.820271338 | L17: =LOOKUP($N$3,температуры,плотности)/(1+(L$6-$N$3)/($N$3-$A17))/LOOKUP(L$6,температуры,плотности)*$N$4+LOOKUP($N$3,температуры,плотности)*(1-1/(1+(L$6-$N$3)/($N$3-$A17)))/LOOKUP($A17,температуры,плотности) -> 1.834611012 | M17: =LOOKUP($N$3,температуры,плотности)/(1+(M$6-$N$3)/($N$3-$A17))/LOOKUP(M$6,температуры,плотности)*$N$4+LOOKUP($N$3,температуры,плотности)*(1-1/(1+(M$6-$N$3)/($N$3-$A17)))/LOOKUP($A17,температуры,плотности) -> 1.849482495 | N17: =LOOKUP($N$3,температуры,плотности)/(1+(N$6-$N$3)/($N$3-$A17))/LOOKUP(N$6,температуры,плотности)*$N$4+LOOKUP($N$3,температуры,плотности)*(1-1/(1+(N$6-$N$3)/($N$3-$A17)))/LOOKUP($A17,температуры,плотности) -> 1.864974459 | O17: =LOOKUP($N$3,температуры,плотности)/(1+(O$6-$N$3)/($N$3-$A17))/LOOKUP(O$6,температуры,плотности)*$N$4+LOOKUP($N$3,температуры,плотности)*(1-1/(1+(O$6-$N$3)/($N$3-$A17)))/LOOKUP($A17,температуры,плотности) -> 1.881062875 | P17: =LOOKUP($N$3,температуры,плотности)/(1+(P$6-$N$3)/($N$3-$A17))/LOOKUP(P$6,температуры,плотности)*$N$4+LOOKUP($N$3,температуры,плотности)*(1-1/(1+(P$6-$N$3)/($N$3-$A17)))/LOOKUP($A17,температуры,плотности) -> 1.897722087 | Q17: =LOOKUP($N$3,температуры,плотности)/(1+(Q$6-$N$3)/($N$3-$A17))/LOOKUP(Q$6,температуры,плотности)*$N$4+LOOKUP($N$3,температуры,плотности)*(1-1/(1+(Q$6-$N$3)/($N$3-$A17)))/LOOKUP($A17,температуры,плотности) -> 1.91504843 | R17: =LOOKUP($N$3,температуры,плотности)/(1+(R$6-$N$3)/($N$3-$A17))/LOOKUP(R$6,температуры,плотности)*$N$4+LOOKUP($N$3,температуры,плотности)*(1-1/(1+(R$6-$N$3)/($N$3-$A17)))/LOOKUP($A17,температуры,плотности) -> 1.933145829 | S17: =LOOKUP($N$3,температуры,плотности)/(1+(S$6-$N$3)/($N$3-$A17))/LOOKUP(S$6,температуры,плотности)*$N$4+LOOKUP($N$3,температуры,плотности)*(1-1/(1+(S$6-$N$3)/($N$3-$A17)))/LOOKUP($A17,температуры,плотности) -> 1.95199794 | T17: =LOOKUP($N$3,температуры,плотности)/(1+(T$6-$N$3)/($N$3-$A17))/LOOKUP(T$6,температуры,плотности)*$N$4+LOOKUP($N$3,температуры,плотности)*(1-1/(1+(T$6-$N$3)/($N$3-$A17)))/LOOKUP($A17,температуры,плотности) -> 1.971652936 | U17: =LOOKUP($N$3,температуры,плотности)/(1+(U$6-$N$3)/($N$3-$A17))/LOOKUP(U$6,температуры,плотности)*$N$4+LOOKUP($N$3,температуры,плотности)*(1-1/(1+(U$6-$N$3)/($N$3-$A17)))/LOOKUP($A17,температуры,плотности) -> 1.992163179 | V17: =LOOKUP($N$3,температуры,плотности)/(1+(V$6-$N$3)/($N$3-$A17))/LOOKUP(V$6,температуры,плотности)*$N$4+LOOKUP($N$3,температуры,плотности)*(1-1/(1+(V$6-$N$3)/($N$3-$A17)))/LOOKUP($A17,температуры,плотности) -> 2.013585683 | W17: =LOOKUP($N$3,температуры,плотности)/(1+(W$6-$N$3)/($N$3-$A17))/LOOKUP(W$6,температуры,плотности)*$N$4+LOOKUP($N$3,температуры,плотности)*(1-1/(1+(W$6-$N$3)/($N$3-$A17)))/LOOKUP($A17,температуры,плотности) -> 2.035982647 | X17: =LOOKUP($N$3,температуры,плотности)/(1+(X$6-$N$3)/($N$3-$A17))/LOOKUP(X$6,температуры,плотности)*$N$4+LOOKUP($N$3,температуры,плотности)*(1-1/(1+(X$6-$N$3)/($N$3-$A17)))/LOOKUP($A17,температуры,плотности) -> 2.059493508 | Y17: =LOOKUP($N$3,температуры,плотности)/(1+(Y$6-$N$3)/($N$3-$A17))/LOOKUP(Y$6,температуры,плотности)*$N$4+LOOKUP($N$3,температуры,плотности)*(1-1/(1+(Y$6-$N$3)/($N$3-$A17)))/LOOKUP($A17,температуры,плотности) -> 2.084124535 | Z17: =LOOKUP($N$3,температуры,плотности)/(1+(Z$6-$N$3)/($N$3-$A17))/LOOKUP(Z$6,температуры,плотности)*$N$4+LOOKUP($N$3,температуры,плотности)*(1-1/(1+(Z$6-$N$3)/($N$3-$A17)))/LOOKUP($A17,температуры,плотности) -> 2.10995769 | AA17: =LOOKUP($N$3,температуры,плотности)/(1+(AA$6-$N$3)/($N$3-$A17))/LOOKUP(AA$6,температуры,плотности)*$N$4+LOOKUP($N$3,температуры,плотности)*(1-1/(1+(AA$6-$N$3)/($N$3-$A17)))/LOOKUP($A17,температуры,плотности) -> 2.137083132 | AB17: =LOOKUP($N$3,температуры,плотности)/(1+(AB$6-$N$3)/($N$3-$A17))/LOOKUP(AB$6,температуры,плотности)*$N$4+LOOKUP($N$3,температуры,плотности)*(1-1/(1+(AB$6-$N$3)/($N$3-$A17)))/LOOKUP($A17,температуры,плотности) -> 2.165600265 | AC17: =LOOKUP($N$3,температуры,плотности)/(1+(AC$6-$N$3)/($N$3-$A17))/LOOKUP(AC$6,температуры,плотности)*$N$4+LOOKUP($N$3,температуры,плотности)*(1-1/(1+(AC$6-$N$3)/($N$3-$A17)))/LOOKUP($A17,температуры,плотности) -> 2.195618961 | AI17: 18 | AJ17: 0.9986
A18: 9 | B18: =LOOKUP($N$3,температуры,плотности)/(1+(B$6-$N$3)/($N$3-$A18))/LOOKUP(B$6,температуры,плотности)*$N$4+LOOKUP($N$3,температуры,плотности)*(1-1/(1+(B$6-$N$3)/($N$3-$A18)))/LOOKUP($A18,температуры,плотности) -> 1.7473225 | C18: =LOOKUP($N$3,температуры,плотности)/(1+(C$6-$N$3)/($N$3-$A18))/LOOKUP(C$6,температуры,плотности)*$N$4+LOOKUP($N$3,температуры,плотности)*(1-1/(1+(C$6-$N$3)/($N$3-$A18)))/LOOKUP($A18,температуры,плотности) -> 1.758242592 | D18: =LOOKUP($N$3,температуры,плотности)/(1+(D$6-$N$3)/($N$3-$A18))/LOOKUP(D$6,температуры,плотности)*$N$4+LOOKUP($N$3,температуры,плотности)*(1-1/(1+(D$6-$N$3)/($N$3-$A18)))/LOOKUP($A18,температуры,плотности) -> 1.76950471 | E18: =LOOKUP($N$3,температуры,плотности)/(1+(E$6-$N$3)/($N$3-$A18))/LOOKUP(E$6,температуры,плотности)*$N$4+LOOKUP($N$3,температуры,плотности)*(1-1/(1+(E$6-$N$3)/($N$3-$A18)))/LOOKUP($A18,температуры,плотности) -> 1.781125141 | F18: =LOOKUP($N$3,температуры,плотности)/(1+(F$6-$N$3)/($N$3-$A18))/LOOKUP(F$6,температуры,плотности)*$N$4+LOOKUP($N$3,температуры,плотности)*(1-1/(1+(F$6-$N$3)/($N$3-$A18)))/LOOKUP($A18,температуры,плотности) -> 1.79312122 | G18: =LOOKUP($N$3,температуры,плотности)/(1+(G$6-$N$3)/($N$3-$A18))/LOOKUP(G$6,температуры,плотности)*$N$4+LOOKUP($N$3,температуры,плотности)*(1-1/(1+(G$6-$N$3)/($N$3-$A18)))/LOOKUP($A18,температуры,плотности) -> 1.80551142 | H18: =LOOKUP($N$3,температуры,плотности)/(1+(H$6-$N$3)/($N$3-$A18))/LOOKUP(H$6,температуры,плотности)*$N$4+LOOKUP($N$3,температуры,плотности)*(1-1/(1+(H$6-$N$3)/($N$3-$A18)))/LOOKUP($A18,температуры,плотности) -> 1.818370998 | I18: =LOOKUP($N$3,температуры,плотности)/(1+(I$6-$N$3)/($N$3-$A18))/LOOKUP(I$6,температуры,плотности)*$N$4+LOOKUP($N$3,температуры,плотности)*(1-1/(1+(I$6-$N$3)/($N$3-$A18)))/LOOKUP($A18,температуры,плотности) -> 1.831667193 | J18: =LOOKUP($N$3,температуры,плотности)/(1+(J$6-$N$3)/($N$3-$A18))/LOOKUP(J$6,температуры,плотности)*$N$4+LOOKUP($N$3,температуры,плотности)*(1-1/(1+(J$6-$N$3)/($N$3-$A18)))/LOOKUP($A18,температуры,плотности) -> 1.845422588 | K18: =LOOKUP($N$3,температуры,плотности)/(1+(K$6-$N$3)/($N$3-$A18))/LOOKUP(K$6,температуры,плотности)*$N$4+LOOKUP($N$3,температуры,плотности)*(1-1/(1+(K$6-$N$3)/($N$3-$A18)))/LOOKUP($A18,температуры,плотности) -> 1.859661348 | L18: =LOOKUP($N$3,температуры,плотности)/(1+(L$6-$N$3)/($N$3-$A18))/LOOKUP(L$6,температуры,плотности)*$N$4+LOOKUP($N$3,температуры,плотности)*(1-1/(1+(L$6-$N$3)/($N$3-$A18)))/LOOKUP($A18,температуры,плотности) -> 1.874409368 | M18: =LOOKUP($N$3,температуры,плотности)/(1+(M$6-$N$3)/($N$3-$A18))/LOOKUP(M$6,температуры,плотности)*$N$4+LOOKUP($N$3,температуры,плотности)*(1-1/(1+(M$6-$N$3)/($N$3-$A18)))/LOOKUP($A18,температуры,плотности) -> 1.889694424 | N18: =LOOKUP($N$3,температуры,плотности)/(1+(N$6-$N$3)/($N$3-$A18))/LOOKUP(N$6,температуры,плотности)*$N$4+LOOKUP($N$3,температуры,плотности)*(1-1/(1+(N$6-$N$3)/($N$3-$A18)))/LOOKUP($A18,температуры,плотности) -> 1.905607668 | O18: =LOOKUP($N$3,температуры,плотности)/(1+(O$6-$N$3)/($N$3-$A18))/LOOKUP(O$6,температуры,плотности)*$N$4+LOOKUP($N$3,температуры,плотности)*(1-1/(1+(O$6-$N$3)/($N$3-$A18)))/LOOKUP($A18,температуры,плотности) -> 1.922122048 | P18: =LOOKUP($N$3,температуры,плотности)/(1+(P$6-$N$3)/($N$3-$A18))/LOOKUP(P$6,температуры,плотности)*$N$4+LOOKUP($N$3,температуры,плотности)*(1-1/(1+(P$6-$N$3)/($N$3-$A18)))/LOOKUP($A18,температуры,плотности) -> 1.939208698 | Q18: =LOOKUP($N$3,температуры,плотности)/(1+(Q$6-$N$3)/($N$3-$A18))/LOOKUP(Q$6,температуры,плотности)*$N$4+LOOKUP($N$3,температуры,плотности)*(1-1/(1+(Q$6-$N$3)/($N$3-$A18)))/LOOKUP($A18,температуры,плотности) -> 1.95696621 | R18: =LOOKUP($N$3,температуры,плотности)/(1+(R$6-$N$3)/($N$3-$A18))/LOOKUP(R$6,температуры,плотности)*$N$4+LOOKUP($N$3,температуры,плотности)*(1-1/(1+(R$6-$N$3)/($N$3-$A18)))/LOOKUP($A18,температуры,плотности) -> 1.975500776 | S18: =LOOKUP($N$3,температуры,плотности)/(1+(S$6-$N$3)/($N$3-$A18))/LOOKUP(S$6,температуры,плотности)*$N$4+LOOKUP($N$3,температуры,плотности)*(1-1/(1+(S$6-$N$3)/($N$3-$A18)))/LOOKUP($A18,температуры,плотности) -> 1.994792538 | T18: =LOOKUP($N$3,температуры,плотности)/(1+(T$6-$N$3)/($N$3-$A18))/LOOKUP(T$6,температуры,плотности)*$N$4+LOOKUP($N$3,температуры,плотности)*(1-1/(1+(T$6-$N$3)/($N$3-$A18)))/LOOKUP($A18,температуры,плотности) -> 2.014888821 | U18: =LOOKUP($N$3,температуры,плотности)/(1+(U$6-$N$3)/($N$3-$A18))/LOOKUP(U$6,температуры,плотности)*$N$4+LOOKUP($N$3,температуры,плотности)*(1-1/(1+(U$6-$N$3)/($N$3-$A18)))/LOOKUP($A18,температуры,плотности) -> 2.035840976 | V18: =LOOKUP($N$3,температуры,плотности)/(1+(V$6-$N$3)/($N$3-$A18))/LOOKUP(V$6,температуры,плотности)*$N$4+LOOKUP($N$3,температуры,плотности)*(1-1/(1+(V$6-$N$3)/($N$3-$A18)))/LOOKUP($A18,температуры,плотности) -> 2.05770482 | W18: =LOOKUP($N$3,температуры,плотности)/(1+(W$6-$N$3)/($N$3-$A18))/LOOKUP(W$6,температуры,плотности)*$N$4+LOOKUP($N$3,температуры,плотности)*(1-1/(1+(W$6-$N$3)/($N$3-$A18)))/LOOKUP($A18,температуры,плотности) -> 2.08054113 | X18: =LOOKUP($N$3,температуры,плотности)/(1+(X$6-$N$3)/($N$3-$A18))/LOOKUP(X$6,температуры,плотности)*$N$4+LOOKUP($N$3,температуры,плотности)*(1-1/(1+(X$6-$N$3)/($N$3-$A18)))/LOOKUP($A18,температуры,плотности) -> 2.104490695 | Y18: =LOOKUP($N$3,температуры,плотности)/(1+(Y$6-$N$3)/($N$3-$A18))/LOOKUP(Y$6,температуры,плотности)*$N$4+LOOKUP($N$3,температуры,плотности)*(1-1/(1+(Y$6-$N$3)/($N$3-$A18)))/LOOKUP($A18,температуры,плотности) -> 2.129554819 | Z18: =LOOKUP($N$3,температуры,плотности)/(1+(Z$6-$N$3)/($N$3-$A18))/LOOKUP(Z$6,температуры,плотности)*$N$4+LOOKUP($N$3,температуры,плотности)*(1-1/(1+(Z$6-$N$3)/($N$3-$A18)))/LOOKUP($A18,температуры,плотности) -> 2.155813113 | AA18: =LOOKUP($N$3,температуры,плотности)/(1+(AA$6-$N$3)/($N$3-$A18))/LOOKUP(AA$6,температуры,плотности)*$N$4+LOOKUP($N$3,температуры,плотности)*(1-1/(1+(AA$6-$N$3)/($N$3-$A18)))/LOOKUP($A18,температуры,плотности) -> 2.183352953 | AB18: =LOOKUP($N$3,температуры,плотности)/(1+(AB$6-$N$3)/($N$3-$A18))/LOOKUP(AB$6,температуры,плотности)*$N$4+LOOKUP($N$3,температуры,плотности)*(1-1/(1+(AB$6-$N$3)/($N$3-$A18)))/LOOKUP($A18,температуры,плотности) -> 2.212270455 | AC18: =LOOKUP($N$3,температуры,плотности)/(1+(AC$6-$N$3)/($N$3-$A18))/LOOKUP(AC$6,температуры,плотности)*$N$4+LOOKUP($N$3,температуры,плотности)*(1-1/(1+(AC$6-$N$3)/($N$3-$A18)))/LOOKUP($A18,температуры,плотности) -> 2.242671592 | AI18: 19 | AJ18: 0.9984
A19: 8 | B19: =LOOKUP($N$3,температуры,плотности)/(1+(B$6-$N$3)/($N$3-$A19))/LOOKUP(B$6,температуры,плотности)*$N$4+LOOKUP($N$3,температуры,плотности)*(1-1/(1+(B$6-$N$3)/($N$3-$A19)))/LOOKUP($A19,температуры,плотности) -> 1.782232821 | C19: =LOOKUP($N$3,температуры,плотности)/(1+(C$6-$N$3)/($N$3-$A19))/LOOKUP(C$6,температуры,плотности)*$N$4+LOOKUP($N$3,температуры,плотности)*(1-1/(1+(C$6-$N$3)/($N$3-$A19)))/LOOKUP($A19,температуры,плотности) -> 1.793479781 | D19: =LOOKUP($N$3,температуры,плотности)/(1+(D$6-$N$3)/($N$3-$A19))/LOOKUP(D$6,температуры,плотности)*$N$4+LOOKUP($N$3,температуры,плотности)*(1-1/(1+(D$6-$N$3)/($N$3-$A19)))/LOOKUP($A19,температуры,плотности) -> 1.80507361 | E19: =LOOKUP($N$3,температуры,плотности)/(1+(E$6-$N$3)/($N$3-$A19))/LOOKUP(E$6,температуры,плотности)*$N$4+LOOKUP($N$3,температуры,плотности)*(1-1/(1+(E$6-$N$3)/($N$3-$A19)))/LOOKUP($A19,температуры,плотности) -> 1.817030568 | F19: =LOOKUP($N$3,температуры,плотности)/(1+(F$6-$N$3)/($N$3-$A19))/LOOKUP(F$6,температуры,плотности)*$N$4+LOOKUP($N$3,температуры,плотности)*(1-1/(1+(F$6-$N$3)/($N$3-$A19)))/LOOKUP($A19,температуры,плотности) -> 1.829367943 | G19: =LOOKUP($N$3,температуры,плотности)/(1+(G$6-$N$3)/($N$3-$A19))/LOOKUP(G$6,температуры,плотности)*$N$4+LOOKUP($N$3,температуры,плотности)*(1-1/(1+(G$6-$N$3)/($N$3-$A19)))/LOOKUP($A19,температуры,плотности) -> 1.842104141 | H19: =LOOKUP($N$3,температуры,плотности)/(1+(H$6-$N$3)/($N$3-$A19))/LOOKUP(H$6,температуры,плотности)*$N$4+LOOKUP($N$3,температуры,плотности)*(1-1/(1+(H$6-$N$3)/($N$3-$A19)))/LOOKUP($A19,температуры,плотности) -> 1.855316833 | I19: =LOOKUP($N$3,температуры,плотности)/(1+(I$6-$N$3)/($N$3-$A19))/LOOKUP(I$6,температуры,плотности)*$N$4+LOOKUP($N$3,температуры,плотности)*(1-1/(1+(I$6-$N$3)/($N$3-$A19)))/LOOKUP($A19,температуры,плотности) -> 1.868970678 | J19: =LOOKUP($N$3,температуры,плотности)/(1+(J$6-$N$3)/($N$3-$A19))/LOOKUP(J$6,температуры,плотности)*$N$4+LOOKUP($N$3,температуры,плотности)*(1-1/(1+(J$6-$N$3)/($N$3-$A19)))/LOOKUP($A19,температуры,плотности) -> 1.883088107 | K19: =LOOKUP($N$3,температуры,плотности)/(1+(K$6-$N$3)/($N$3-$A19))/LOOKUP(K$6,температуры,плотности)*$N$4+LOOKUP($N$3,температуры,плотности)*(1-1/(1+(K$6-$N$3)/($N$3-$A19)))/LOOKUP($A19,температуры,плотности) -> 1.897693095 | L19: =LOOKUP($N$3,температуры,плотности)/(1+(L$6-$N$3)/($N$3-$A19))/LOOKUP(L$6,температуры,плотности)*$N$4+LOOKUP($N$3,температуры,плотности)*(1-1/(1+(L$6-$N$3)/($N$3-$A19)))/LOOKUP($A19,температуры,плотности) -> 1.912811305 | M19: =LOOKUP($N$3,температуры,плотности)/(1+(M$6-$N$3)/($N$3-$A19))/LOOKUP(M$6,температуры,плотности)*$N$4+LOOKUP($N$3,температуры,плотности)*(1-1/(1+(M$6-$N$3)/($N$3-$A19)))/LOOKUP($A19,температуры,плотности) -> 1.928470227 | N19: =LOOKUP($N$3,температуры,плотности)/(1+(N$6-$N$3)/($N$3-$A19))/LOOKUP(N$6,температуры,плотности)*$N$4+LOOKUP($N$3,температуры,плотности)*(1-1/(1+(N$6-$N$3)/($N$3-$A19)))/LOOKUP($A19,температуры,плотности) -> 1.944763319 | O19: =LOOKUP($N$3,температуры,плотности)/(1+(O$6-$N$3)/($N$3-$A19))/LOOKUP(O$6,температуры,плотности)*$N$4+LOOKUP($N$3,температуры,плотности)*(1-1/(1+(O$6-$N$3)/($N$3-$A19)))/LOOKUP($A19,температуры,плотности) -> 1.961660523 | P19: =LOOKUP($N$3,температуры,плотности)/(1+(P$6-$N$3)/($N$3-$A19))/LOOKUP(P$6,температуры,плотности)*$N$4+LOOKUP($N$3,температуры,плотности)*(1-1/(1+(P$6-$N$3)/($N$3-$A19)))/LOOKUP($A19,температуры,плотности) -> 1.979129789 | Q19: =LOOKUP($N$3,температуры,плотности)/(1+(Q$6-$N$3)/($N$3-$A19))/LOOKUP(Q$6,температуры,плотности)*$N$4+LOOKUP($N$3,температуры,плотности)*(1-1/(1+(Q$6-$N$3)/($N$3-$A19)))/LOOKUP($A19,температуры,плотности) -> 1.997271781 | R19: =LOOKUP($N$3,температуры,плотности)/(1+(R$6-$N$3)/($N$3-$A19))/LOOKUP(R$6,температуры,плотности)*$N$4+LOOKUP($N$3,температуры,плотности)*(1-1/(1+(R$6-$N$3)/($N$3-$A19)))/LOOKUP($A19,температуры,плотности) -> 2.016194758 | S19: =LOOKUP($N$3,температуры,плотности)/(1+(S$6-$N$3)/($N$3-$A19))/LOOKUP(S$6,температуры,плотности)*$N$4+LOOKUP($N$3,температуры,плотности)*(1-1/(1+(S$6-$N$3)/($N$3-$A19)))/LOOKUP($A19,температуры,плотности) -> 2.035875365 | T19: =LOOKUP($N$3,температуры,плотности)/(1+(T$6-$N$3)/($N$3-$A19))/LOOKUP(T$6,температуры,плотности)*$N$4+LOOKUP($N$3,температуры,плотности)*(1-1/(1+(T$6-$N$3)/($N$3-$A19)))/LOOKUP($A19,температуры,плотности) -> 2.056359989 | U19: =LOOKUP($N$3,температуры,плотности)/(1+(U$6-$N$3)/($N$3-$A19))/LOOKUP(U$6,температуры,плотности)*$N$4+LOOKUP($N$3,температуры,плотности)*(1-1/(1+(U$6-$N$3)/($N$3-$A19)))/LOOKUP($A19,температуры,плотности) -> 2.077698878 | V19: =LOOKUP($N$3,температуры,плотности)/(1+(V$6-$N$3)/($N$3-$A19))/LOOKUP(V$6,температуры,плотности)*$N$4+LOOKUP($N$3,температуры,плотности)*(1-1/(1+(V$6-$N$3)/($N$3-$A19)))/LOOKUP($A19,температуры,плотности) -> 2.09994656 | W19: =LOOKUP($N$3,температуры,плотности)/(1+(W$6-$N$3)/($N$3-$A19))/LOOKUP(W$6,температуры,плотности)*$N$4+LOOKUP($N$3,температуры,плотности)*(1-1/(1+(W$6-$N$3)/($N$3-$A19)))/LOOKUP($A19,температуры,плотности) -> 2.123162301 | X19: =LOOKUP($N$3,температуры,плотности)/(1+(X$6-$N$3)/($N$3-$A19))/LOOKUP(X$6,температуры,плотности)*$N$4+LOOKUP($N$3,температуры,плотности)*(1-1/(1+(X$6-$N$3)/($N$3-$A19)))/LOOKUP($A19,температуры,плотности) -> 2.14748802 | Y19: =LOOKUP($N$3,температуры,плотности)/(1+(Y$6-$N$3)/($N$3-$A19))/LOOKUP(Y$6,температуры,плотности)*$N$4+LOOKUP($N$3,температуры,плотности)*(1-1/(1+(Y$6-$N$3)/($N$3-$A19)))/LOOKUP($A19,температуры,плотности) -> 2.172920102 | Z19: =LOOKUP($N$3,температуры,плотности)/(1+(Z$6-$N$3)/($N$3-$A19))/LOOKUP(Z$6,температуры,плотности)*$N$4+LOOKUP($N$3,температуры,плотности)*(1-1/(1+(Z$6-$N$3)/($N$3-$A19)))/LOOKUP($A19,температуры,плотности) -> 2.199535737 | AA19: =LOOKUP($N$3,температуры,плотности)/(1+(AA$6-$N$3)/($N$3-$A19))/LOOKUP(AA$6,температуры,плотности)*$N$4+LOOKUP($N$3,температуры,плотности)*(1-1/(1+(AA$6-$N$3)/($N$3-$A19)))/LOOKUP($A19,температуры,плотности) -> 2.227419461 | AB19: =LOOKUP($N$3,температуры,плотности)/(1+(AB$6-$N$3)/($N$3-$A19))/LOOKUP(AB$6,температуры,плотности)*$N$4+LOOKUP($N$3,температуры,плотности)*(1-1/(1+(AB$6-$N$3)/($N$3-$A19)))/LOOKUP($A19,температуры,плотности) -> 2.256664062 | AC19: =LOOKUP($N$3,температуры,плотности)/(1+(AC$6-$N$3)/($N$3-$A19))/LOOKUP(AC$6,температуры,плотности)*$N$4+LOOKUP($N$3,температуры,плотности)*(1-1/(1+(AC$6-$N$3)/($N$3-$A19)))/LOOKUP($A19,температуры,плотности) -> 2.287371603 | AI19: 20 | AJ19: 0.9982
A20: 7 | B20: =LOOKUP($N$3,температуры,плотности)/(1+(B$6-$N$3)/($N$3-$A20))/LOOKUP(B$6,температуры,плотности)*$N$4+LOOKUP($N$3,температуры,плотности)*(1-1/(1+(B$6-$N$3)/($N$3-$A20)))/LOOKUP($A20,температуры,плотности) -> 1.816189703 | C20: =LOOKUP($N$3,температуры,плотности)/(1+(C$6-$N$3)/($N$3-$A20))/LOOKUP(C$6,температуры,плотности)*$N$4+LOOKUP($N$3,температуры,плотности)*(1-1/(1+(C$6-$N$3)/($N$3-$A20)))/LOOKUP($A20,температуры,плотности) -> 1.827738054 | D20: =LOOKUP($N$3,температуры,плотности)/(1+(D$6-$N$3)/($N$3-$A20))/LOOKUP(D$6,температуры,плотности)*$N$4+LOOKUP($N$3,температуры,плотности)*(1-1/(1+(D$6-$N$3)/($N$3-$A20)))/LOOKUP($A20,температуры,плотности) -> 1.8396372 | E20: =LOOKUP($N$3,температуры,плотности)/(1+(E$6-$N$3)/($N$3-$A20))/LOOKUP(E$6,температуры,плотности)*$N$4+LOOKUP($N$3,температуры,плотности)*(1-1/(1+(E$6-$N$3)/($N$3-$A20)))/LOOKUP($A20,температуры,плотности) -> 1.851903328 | F20: =LOOKUP($N$3,температуры,плотности)/(1+(F$6-$N$3)/($N$3-$A20))/LOOKUP(F$6,температуры,плотности)*$N$4+LOOKUP($N$3,температуры,плотности)*(1-1/(1+(F$6-$N$3)/($N$3-$A20)))/LOOKUP($A20,температуры,плотности) -> 1.86455364 | G20: =LOOKUP($N$3,температуры,плотности)/(1+(G$6-$N$3)/($N$3-$A20))/LOOKUP(G$6,температуры,плотности)*$N$4+LOOKUP($N$3,температуры,плотности)*(1-1/(1+(G$6-$N$3)/($N$3-$A20)))/LOOKUP($A20,температуры,плотности) -> 1.877606428 | H20: =LOOKUP($N$3,температуры,плотности)/(1+(H$6-$N$3)/($N$3-$A20))/LOOKUP(H$6,температуры,плотности)*$N$4+LOOKUP($N$3,температуры,плотности)*(1-1/(1+(H$6-$N$3)/($N$3-$A20)))/LOOKUP($A20,температуры,плотности) -> 1.891141646 | I20: =LOOKUP($N$3,температуры,плотности)/(1+(I$6-$N$3)/($N$3-$A20))/LOOKUP(I$6,температуры,плотности)*$N$4+LOOKUP($N$3,температуры,плотности)*(1-1/(1+(I$6-$N$3)/($N$3-$A20)))/LOOKUP($A20,температуры,плотности) -> 1.905121403 | J20: =LOOKUP($N$3,температуры,плотности)/(1+(J$6-$N$3)/($N$3-$A20))/LOOKUP(J$6,температуры,плотности)*$N$4+LOOKUP($N$3,температуры,плотности)*(1-1/(1+(J$6-$N$3)/($N$3-$A20)))/LOOKUP($A20,температуры,плотности) -> 1.919567923 | K20: =LOOKUP($N$3,температуры,плотности)/(1+(K$6-$N$3)/($N$3-$A20))/LOOKUP(K$6,температуры,плотности)*$N$4+LOOKUP($N$3,температуры,плотности)*(1-1/(1+(K$6-$N$3)/($N$3-$A20)))/LOOKUP($A20,температуры,плотности) -> 1.934504939 | L20: =LOOKUP($N$3,температуры,плотности)/(1+(L$6-$N$3)/($N$3-$A20))/LOOKUP(L$6,температуры,плотности)*$N$4+LOOKUP($N$3,температуры,плотности)*(1-1/(1+(L$6-$N$3)/($N$3-$A20)))/LOOKUP($A20,температуры,плотности) -> 1.94995782 | M20: =LOOKUP($N$3,температуры,плотности)/(1+(M$6-$N$3)/($N$3-$A20))/LOOKUP(M$6,температуры,плотности)*$N$4+LOOKUP($N$3,температуры,плотности)*(1-1/(1+(M$6-$N$3)/($N$3-$A20)))/LOOKUP($A20,температуры,плотности) -> 1.965953715 | N20: =LOOKUP($N$3,температуры,плотности)/(1+(N$6-$N$3)/($N$3-$A20))/LOOKUP(N$6,температуры,плотности)*$N$4+LOOKUP($N$3,температуры,плотности)*(1-1/(1+(N$6-$N$3)/($N$3-$A20)))/LOOKUP($A20,температуры,плотности) -> 1.982588232 | O20: =LOOKUP($N$3,температуры,плотности)/(1+(O$6-$N$3)/($N$3-$A20))/LOOKUP(O$6,температуры,плотности)*$N$4+LOOKUP($N$3,температуры,плотности)*(1-1/(1+(O$6-$N$3)/($N$3-$A20)))/LOOKUP($A20,температуры,плотности) -> 1.999828331 | P20: =LOOKUP($N$3,температуры,плотности)/(1+(P$6-$N$3)/($N$3-$A20))/LOOKUP(P$6,температуры,плотности)*$N$4+LOOKUP($N$3,температуры,плотности)*(1-1/(1+(P$6-$N$3)/($N$3-$A20)))/LOOKUP($A20,температуры,плотности) -> 2.017638812 | Q20: =LOOKUP($N$3,температуры,плотности)/(1+(Q$6-$N$3)/($N$3-$A20))/LOOKUP(Q$6,температуры,плотности)*$N$4+LOOKUP($N$3,температуры,плотности)*(1-1/(1+(Q$6-$N$3)/($N$3-$A20)))/LOOKUP($A20,температуры,плотности) -> 2.03612225 | R20: =LOOKUP($N$3,температуры,плотности)/(1+(R$6-$N$3)/($N$3-$A20))/LOOKUP(R$6,температуры,плотности)*$N$4+LOOKUP($N$3,температуры,плотности)*(1-1/(1+(R$6-$N$3)/($N$3-$A20)))/LOOKUP($A20,температуры,плотности) -> 2.055388798 | S20: =LOOKUP($N$3,температуры,плотности)/(1+(S$6-$N$3)/($N$3-$A20))/LOOKUP(S$6,температуры,плотности)*$N$4+LOOKUP($N$3,температуры,плотности)*(1-1/(1+(S$6-$N$3)/($N$3-$A20)))/LOOKUP($A20,температуры,плотности) -> 2.075411636 | T20: =LOOKUP($N$3,температуры,плотности)/(1+(T$6-$N$3)/($N$3-$A20))/LOOKUP(T$6,температуры,плотности)*$N$4+LOOKUP($N$3,температуры,плотности)*(1-1/(1+(T$6-$N$3)/($N$3-$A20)))/LOOKUP($A20,температуры,плотности) -> 2.096236141 | U20: =LOOKUP($N$3,температуры,плотности)/(1+(U$6-$N$3)/($N$3-$A20))/LOOKUP(U$6,температуры,плотности)*$N$4+LOOKUP($N$3,температуры,плотности)*(1-1/(1+(U$6-$N$3)/($N$3-$A20)))/LOOKUP($A20,температуры,плотности) -> 2.117911392 | V20: =LOOKUP($N$3,температуры,плотности)/(1+(V$6-$N$3)/($N$3-$A20))/LOOKUP(V$6,температуры,плотности)*$N$4+LOOKUP($N$3,температуры,плотности)*(1-1/(1+(V$6-$N$3)/($N$3-$A20)))/LOOKUP($A20,температуры,плотности) -> 2.140490561 | W20: =LOOKUP($N$3,температуры,плотности)/(1+(W$6-$N$3)/($N$3-$A20))/LOOKUP(W$6,температуры,плотности)*$N$4+LOOKUP($N$3,температуры,плотности)*(1-1/(1+(W$6-$N$3)/($N$3-$A20)))/LOOKUP($A20,температуры,плотности) -> 2.164031344 | X20: =LOOKUP($N$3,температуры,плотности)/(1+(X$6-$N$3)/($N$3-$A20))/LOOKUP(X$6,температуры,плотности)*$N$4+LOOKUP($N$3,температуры,плотности)*(1-1/(1+(X$6-$N$3)/($N$3-$A20)))/LOOKUP($A20,температуры,плотности) -> 2.188676603 | Y20: =LOOKUP($N$3,температуры,плотности)/(1+(Y$6-$N$3)/($N$3-$A20))/LOOKUP(Y$6,температуры,плотности)*$N$4+LOOKUP($N$3,температуры,плотности)*(1-1/(1+(Y$6-$N$3)/($N$3-$A20)))/LOOKUP($A20,температуры,плотности) -> 2.214417881 | Z20: =LOOKUP($N$3,температуры,плотности)/(1+(Z$6-$N$3)/($N$3-$A20))/LOOKUP(Z$6,температуры,плотности)*$N$4+LOOKUP($N$3,температуры,плотности)*(1-1/(1+(Z$6-$N$3)/($N$3-$A20)))/LOOKUP($A20,температуры,плотности) -> 2.241329903 | AA20: =LOOKUP($N$3,температуры,плотности)/(1+(AA$6-$N$3)/($N$3-$A20))/LOOKUP(AA$6,температуры,плотности)*$N$4+LOOKUP($N$3,температуры,плотности)*(1-1/(1+(AA$6-$N$3)/($N$3-$A20)))/LOOKUP($A20,температуры,плотности) -> 2.26949435 | AB20: =LOOKUP($N$3,температуры,плотности)/(1+(AB$6-$N$3)/($N$3-$A20))/LOOKUP(AB$6,температуры,плотности)*$N$4+LOOKUP($N$3,температуры,плотности)*(1-1/(1+(AB$6-$N$3)/($N$3-$A20)))/LOOKUP($A20,температуры,плотности) -> 2.299000678 | AC20: =LOOKUP($N$3,температуры,плотности)/(1+(AC$6-$N$3)/($N$3-$A20))/LOOKUP(AC$6,температуры,плотности)*$N$4+LOOKUP($N$3,температуры,плотности)*(1-1/(1+(AC$6-$N$3)/($N$3-$A20)))/LOOKUP($A20,температуры,плотности) -> 2.329947074 | AI20: 21 | AJ20: 0.998
A21: 6 | B21: =LOOKUP($N$3,температуры,плотности)/(1+(B$6-$N$3)/($N$3-$A21))/LOOKUP(B$6,температуры,плотности)*$N$4+LOOKUP($N$3,температуры,плотности)*(1-1/(1+(B$6-$N$3)/($N$3-$A21)))/LOOKUP($A21,температуры,плотности) -> 1.849162327 | C21: =LOOKUP($N$3,температуры,плотности)/(1+(C$6-$N$3)/($N$3-$A21))/LOOKUP(C$6,температуры,плотности)*$N$4+LOOKUP($N$3,температуры,плотности)*(1-1/(1+(C$6-$N$3)/($N$3-$A21)))/LOOKUP($A21,температуры,плотности) -> 1.860988731 | D21: =LOOKUP($N$3,температуры,плотности)/(1+(D$6-$N$3)/($N$3-$A21))/LOOKUP(D$6,температуры,плотности)*$N$4+LOOKUP($N$3,температуры,плотности)*(1-1/(1+(D$6-$N$3)/($N$3-$A21)))/LOOKUP($A21,температуры,плотности) -> 1.87316904 | E21: =LOOKUP($N$3,температуры,плотности)/(1+(E$6-$N$3)/($N$3-$A21))/LOOKUP(E$6,температуры,плотности)*$N$4+LOOKUP($N$3,температуры,плотности)*(1-1/(1+(E$6-$N$3)/($N$3-$A21)))/LOOKUP($A21,температуры,плотности) -> 1.885719338 | F21: =LOOKUP($N$3,температуры,плотности)/(1+(F$6-$N$3)/($N$3-$A21))/LOOKUP(F$6,температуры,плотности)*$N$4+LOOKUP($N$3,температуры,плотности)*(1-1/(1+(F$6-$N$3)/($N$3-$A21)))/LOOKUP($A21,температуры,плотности) -> 1.8986567 | G21: =LOOKUP($N$3,температуры,плотности)/(1+(G$6-$N$3)/($N$3-$A21))/LOOKUP(G$6,температуры,плотности)*$N$4+LOOKUP($N$3,температуры,плотности)*(1-1/(1+(G$6-$N$3)/($N$3-$A21)))/LOOKUP($A21,температуры,плотности) -> 1.911999268 | H21: =LOOKUP($N$3,температуры,плотности)/(1+(H$6-$N$3)/($N$3-$A21))/LOOKUP(H$6,температуры,плотности)*$N$4+LOOKUP($N$3,температуры,плотности)*(1-1/(1+(H$6-$N$3)/($N$3-$A21)))/LOOKUP($A21,температуры,плотности) -> 1.925829164 | I21: =LOOKUP($N$3,температуры,плотности)/(1+(I$6-$N$3)/($N$3-$A21))/LOOKUP(I$6,температуры,плотности)*$N$4+LOOKUP($N$3,температуры,плотности)*(1-1/(1+(I$6-$N$3)/($N$3-$A21)))/LOOKUP($A21,температуры,плотности) -> 1.940105975 | J21: =LOOKUP($N$3,температуры,плотности)/(1+(J$6-$N$3)/($N$3-$A21))/LOOKUP(J$6,температуры,плотности)*$N$4+LOOKUP($N$3,температуры,плотности)*(1-1/(1+(J$6-$N$3)/($N$3-$A21)))/LOOKUP($A21,температуры,плотности) -> 1.954851679 | K21: =LOOKUP($N$3,температуры,плотности)/(1+(K$6-$N$3)/($N$3-$A21))/LOOKUP(K$6,температуры,плотности)*$N$4+LOOKUP($N$3,температуры,плотности)*(1-1/(1+(K$6-$N$3)/($N$3-$A21)))/LOOKUP($A21,температуры,плотности) -> 1.97008972 | L21: =LOOKUP($N$3,температуры,плотности)/(1+(L$6-$N$3)/($N$3-$A21))/LOOKUP(L$6,температуры,плотности)*$N$4+LOOKUP($N$3,температуры,плотности)*(1-1/(1+(L$6-$N$3)/($N$3-$A21)))/LOOKUP($A21,температуры,плотности) -> 1.985845131 | M21: =LOOKUP($N$3,температуры,плотности)/(1+(M$6-$N$3)/($N$3-$A21))/LOOKUP(M$6,температуры,плотности)*$N$4+LOOKUP($N$3,температуры,плотности)*(1-1/(1+(M$6-$N$3)/($N$3-$A21)))/LOOKUP($A21,температуры,плотности) -> 2.002144669 | N21: =LOOKUP($N$3,температуры,плотности)/(1+(N$6-$N$3)/($N$3-$A21))/LOOKUP(N$6,температуры,плотности)*$N$4+LOOKUP($N$3,температуры,плотности)*(1-1/(1+(N$6-$N$3)/($N$3-$A21)))/LOOKUP($A21,температуры,плотности) -> 2.019085955 | O21: =LOOKUP($N$3,температуры,плотности)/(1+(O$6-$N$3)/($N$3-$A21))/LOOKUP(O$6,температуры,плотности)*$N$4+LOOKUP($N$3,температуры,плотности)*(1-1/(1+(O$6-$N$3)/($N$3-$A21)))/LOOKUP($A21,температуры,плотности) -> 2.036633002 | P21: =LOOKUP($N$3,температуры,плотности)/(1+(P$6-$N$3)/($N$3-$A21))/LOOKUP(P$6,температуры,плотности)*$N$4+LOOKUP($N$3,температуры,плотности)*(1-1/(1+(P$6-$N$3)/($N$3-$A21)))/LOOKUP($A21,температуры,плотности) -> 2.054747506 | Q21: =LOOKUP($N$3,температуры,плотности)/(1+(Q$6-$N$3)/($N$3-$A21))/LOOKUP(Q$6,температуры,плотности)*$N$4+LOOKUP($N$3,температуры,плотности)*(1-1/(1+(Q$6-$N$3)/($N$3-$A21)))/LOOKUP($A21,температуры,плотности) -> 2.073533812 | R21: =LOOKUP($N$3,температуры,плотности)/(1+(R$6-$N$3)/($N$3-$A21))/LOOKUP(R$6,температуры,плотности)*$N$4+LOOKUP($N$3,температуры,плотности)*(1-1/(1+(R$6-$N$3)/($N$3-$A21)))/LOOKUP($A21,температуры,плотности) -> 2.093103817 | S21: =LOOKUP($N$3,температуры,плотности)/(1+(S$6-$N$3)/($N$3-$A21))/LOOKUP(S$6,температуры,плотности)*$N$4+LOOKUP($N$3,температуры,плотности)*(1-1/(1+(S$6-$N$3)/($N$3-$A21)))/LOOKUP($A21,температуры,плотности) -> 2.113427281 | T21: =LOOKUP($N$3,температуры,плотности)/(1+(T$6-$N$3)/($N$3-$A21))/LOOKUP(T$6,температуры,плотности)*$N$4+LOOKUP($N$3,температуры,плотности)*(1-1/(1+(T$6-$N$3)/($N$3-$A21)))/LOOKUP($A21,температуры,плотности) -> 2.134548521 | U21: =LOOKUP($N$3,температуры,плотности)/(1+(U$6-$N$3)/($N$3-$A21))/LOOKUP(U$6,температуры,плотности)*$N$4+LOOKUP($N$3,температуры,плотности)*(1-1/(1+(U$6-$N$3)/($N$3-$A21)))/LOOKUP($A21,температуры,плотности) -> 2.156515405 | V21: =LOOKUP($N$3,температуры,плотности)/(1+(V$6-$N$3)/($N$3-$A21))/LOOKUP(V$6,температуры,плотности)*$N$4+LOOKUP($N$3,температуры,плотности)*(1-1/(1+(V$6-$N$3)/($N$3-$A21)))/LOOKUP($A21,температуры,плотности) -> 2.179379706 | W21: =LOOKUP($N$3,температуры,плотности)/(1+(W$6-$N$3)/($N$3-$A21))/LOOKUP(W$6,температуры,плотности)*$N$4+LOOKUP($N$3,температуры,плотности)*(1-1/(1+(W$6-$N$3)/($N$3-$A21)))/LOOKUP($A21,температуры,плотности) -> 2.203197509 | X21: =LOOKUP($N$3,температуры,плотности)/(1+(X$6-$N$3)/($N$3-$A21))/LOOKUP(X$6,температуры,плотности)*$N$4+LOOKUP($N$3,температуры,плотности)*(1-1/(1+(X$6-$N$3)/($N$3-$A21)))/LOOKUP($A21,температуры,плотности) -> 2.228112482 | Y21: =LOOKUP($N$3,температуры,плотности)/(1+(Y$6-$N$3)/($N$3-$A21))/LOOKUP(Y$6,температуры,плотности)*$N$4+LOOKUP($N$3,температуры,плотности)*(1-1/(1+(Y$6-$N$3)/($N$3-$A21)))/LOOKUP($A21,температуры,плотности) -> 2.254111408 | Z21: =LOOKUP($N$3,температуры,плотности)/(1+(Z$6-$N$3)/($N$3-$A21))/LOOKUP(Z$6,температуры,плотности)*$N$4+LOOKUP($N$3,температуры,плотности)*(1-1/(1+(Z$6-$N$3)/($N$3-$A21)))/LOOKUP($A21,температуры,плотности) -> 2.281266551 | AA21: =LOOKUP($N$3,температуры,плотности)/(1+(AA$6-$N$3)/($N$3-$A21))/LOOKUP(AA$6,температуры,плотности)*$N$4+LOOKUP($N$3,температуры,плотности)*(1-1/(1+(AA$6-$N$3)/($N$3-$A21)))/LOOKUP($A21,температуры,плотности) -> 2.309656744 | AB21: =LOOKUP($N$3,температуры,плотности)/(1+(AB$6-$N$3)/($N$3-$A21))/LOOKUP(AB$6,температуры,плотности)*$N$4+LOOKUP($N$3,температуры,плотности)*(1-1/(1+(AB$6-$N$3)/($N$3-$A21)))/LOOKUP($A21,температуры,плотности) -> 2.33936815 | AC21: =LOOKUP($N$3,температуры,плотности)/(1+(AC$6-$N$3)/($N$3-$A21))/LOOKUP(AC$6,температуры,плотности)*$N$4+LOOKUP($N$3,температуры,плотности)*(1-1/(1+(AC$6-$N$3)/($N$3-$A21)))/LOOKUP($A21,температуры,плотности) -> 2.370495142 | AI21: 22 | AJ21: 0.9978
A22: 5 | B22: =LOOKUP($N$3,температуры,плотности)/(1+(B$6-$N$3)/($N$3-$A22))/LOOKUP(B$6,температуры,плотности)*$N$4+LOOKUP($N$3,температуры,плотности)*(1-1/(1+(B$6-$N$3)/($N$3-$A22)))/LOOKUP($A22,температуры,плотности) -> 1.881157262 | C22: =LOOKUP($N$3,температуры,плотности)/(1+(C$6-$N$3)/($N$3-$A22))/LOOKUP(C$6,температуры,плотности)*$N$4+LOOKUP($N$3,температуры,плотности)*(1-1/(1+(C$6-$N$3)/($N$3-$A22)))/LOOKUP($A22,температуры,плотности) -> 1.893240213 | D22: =LOOKUP($N$3,температуры,плотности)/(1+(D$6-$N$3)/($N$3-$A22))/LOOKUP(D$6,температуры,плотности)*$N$4+LOOKUP($N$3,температуры,плотности)*(1-1/(1+(D$6-$N$3)/($N$3-$A22)))/LOOKUP($A22,температуры,плотности) -> 1.905679454 | E22: =LOOKUP($N$3,температуры,плотности)/(1+(E$6-$N$3)/($N$3-$A22))/LOOKUP(E$6,температуры,плотности)*$N$4+LOOKUP($N$3,температуры,плотности)*(1-1/(1+(E$6-$N$3)/($N$3-$A22)))/LOOKUP($A22,температуры,плотности) -> 1.918490938 | F22: =LOOKUP($N$3,температуры,плотности)/(1+(F$6-$N$3)/($N$3-$A22))/LOOKUP(F$6,температуры,плотности)*$N$4+LOOKUP($N$3,температуры,плотности)*(1-1/(1+(F$6-$N$3)/($N$3-$A22)))/LOOKUP($A22,температуры,плотности) -> 1.931691583 | G22: =LOOKUP($N$3,температуры,плотности)/(1+(G$6-$N$3)/($N$3-$A22))/LOOKUP(G$6,температуры,плотности)*$N$4+LOOKUP($N$3,температуры,плотности)*(1-1/(1+(G$6-$N$3)/($N$3-$A22)))/LOOKUP($A22,температуры,плотности) -> 1.945299349 | H22: =LOOKUP($N$3,температуры,плотности)/(1+(H$6-$N$3)/($N$3-$A22))/LOOKUP(H$6,температуры,плотности)*$N$4+LOOKUP($N$3,температуры,плотности)*(1-1/(1+(H$6-$N$3)/($N$3-$A22)))/LOOKUP($A22,температуры,плотности) -> 1.959398418 | I22: =LOOKUP($N$3,температуры,плотности)/(1+(I$6-$N$3)/($N$3-$A22))/LOOKUP(I$6,температуры,плотности)*$N$4+LOOKUP($N$3,температуры,плотности)*(1-1/(1+(I$6-$N$3)/($N$3-$A22)))/LOOKUP($A22,температуры,плотности) -> 1.973945894 | J22: =LOOKUP($N$3,температуры,плотности)/(1+(J$6-$N$3)/($N$3-$A22))/LOOKUP(J$6,температуры,плотности)*$N$4+LOOKUP($N$3,температуры,плотности)*(1-1/(1+(J$6-$N$3)/($N$3-$A22)))/LOOKUP($A22,температуры,плотности) -> 1.988963474 | K22: =LOOKUP($N$3,температуры,плотности)/(1+(K$6-$N$3)/($N$3-$A22))/LOOKUP(K$6,температуры,плотности)*$N$4+LOOKUP($N$3,температуры,плотности)*(1-1/(1+(K$6-$N$3)/($N$3-$A22)))/LOOKUP($A22,температуры,плотности) -> 2.004474275 | L22: =LOOKUP($N$3,температуры,плотности)/(1+(L$6-$N$3)/($N$3-$A22))/LOOKUP(L$6,температуры,плотности)*$N$4+LOOKUP($N$3,температуры,плотности)*(1-1/(1+(L$6-$N$3)/($N$3-$A22)))/LOOKUP($A22,температуры,плотности) -> 2.020502958 | M22: =LOOKUP($N$3,температуры,плотности)/(1+(M$6-$N$3)/($N$3-$A22))/LOOKUP(M$6,температуры,плотности)*$N$4+LOOKUP($N$3,температуры,плотности)*(1-1/(1+(M$6-$N$3)/($N$3-$A22)))/LOOKUP($A22,температуры,плотности) -> 2.037075853 | N22: =LOOKUP($N$3,температуры,плотности)/(1+(N$6-$N$3)/($N$3-$A22))/LOOKUP(N$6,температуры,плотности)*$N$4+LOOKUP($N$3,температуры,плотности)*(1-1/(1+(N$6-$N$3)/($N$3-$A22)))/LOOKUP($A22,температуры,плотности) -> 2.054292469 | O22: =LOOKUP($N$3,температуры,плотности)/(1+(O$6-$N$3)/($N$3-$A22))/LOOKUP(O$6,температуры,плотности)*$N$4+LOOKUP($N$3,температуры,плотности)*(1-1/(1+(O$6-$N$3)/($N$3-$A22)))/LOOKUP($A22,температуры,плотности) -> 2.072113916 | P22: =LOOKUP($N$3,температуры,плотности)/(1+(P$6-$N$3)/($N$3-$A22))/LOOKUP(P$6,температуры,плотности)*$N$4+LOOKUP($N$3,температуры,плотности)*(1-1/(1+(P$6-$N$3)/($N$3-$A22)))/LOOKUP($A22,температуры,плотности) -> 2.090498837 | Q22: =LOOKUP($N$3,температуры,плотности)/(1+(Q$6-$N$3)/($N$3-$A22))/LOOKUP(Q$6,температуры,плотности)*$N$4+LOOKUP($N$3,температуры,плотности)*(1-1/(1+(Q$6-$N$3)/($N$3-$A22)))/LOOKUP($A22,температуры,плотности) -> 2.109553225 | R22: =LOOKUP($N$3,температуры,плотности)/(1+(R$6-$N$3)/($N$3-$A22))/LOOKUP(R$6,температуры,плотности)*$N$4+LOOKUP($N$3,температуры,плотности)*(1-1/(1+(R$6-$N$3)/($N$3-$A22)))/LOOKUP($A22,температуры,плотности) -> 2.129390591 | S22: =LOOKUP($N$3,температуры,плотности)/(1+(S$6-$N$3)/($N$3-$A22))/LOOKUP(S$6,температуры,плотности)*$N$4+LOOKUP($N$3,температуры,плотности)*(1-1/(1+(S$6-$N$3)/($N$3-$A22)))/LOOKUP($A22,температуры,плотности) -> 2.149977328 | T22: =LOOKUP($N$3,температуры,плотности)/(1+(T$6-$N$3)/($N$3-$A22))/LOOKUP(T$6,температуры,плотности)*$N$4+LOOKUP($N$3,температуры,плотности)*(1-1/(1+(T$6-$N$3)/($N$3-$A22)))/LOOKUP($A22,температуры,плотности) -> 2.171356666 | U22: =LOOKUP($N$3,температуры,плотности)/(1+(U$6-$N$3)/($N$3-$A22))/LOOKUP(U$6,температуры,плотности)*$N$4+LOOKUP($N$3,температуры,плотности)*(1-1/(1+(U$6-$N$3)/($N$3-$A22)))/LOOKUP($A22,температуры,плотности) -> 2.193575229 | V22: =LOOKUP($N$3,температуры,плотности)/(1+(V$6-$N$3)/($N$3-$A22))/LOOKUP(V$6,температуры,плотности)*$N$4+LOOKUP($N$3,температуры,плотности)*(1-1/(1+(V$6-$N$3)/($N$3-$A22)))/LOOKUP($A22,температуры,плотности) -> 2.216683368 | W22: =LOOKUP($N$3,температуры,плотности)/(1+(W$6-$N$3)/($N$3-$A22))/LOOKUP(W$6,температуры,плотности)*$N$4+LOOKUP($N$3,температуры,плотности)*(1-1/(1+(W$6-$N$3)/($N$3-$A22)))/LOOKUP($A22,температуры,плотности) -> 2.240735547 | X22: =LOOKUP($N$3,температуры,плотности)/(1+(X$6-$N$3)/($N$3-$A22))/LOOKUP(X$6,температуры,плотности)*$N$4+LOOKUP($N$3,температуры,плотности)*(1-1/(1+(X$6-$N$3)/($N$3-$A22)))/LOOKUP($A22,температуры,плотности) -> 2.265876113 | Y22: =LOOKUP($N$3,температуры,плотности)/(1+(Y$6-$N$3)/($N$3-$A22))/LOOKUP(Y$6,температуры,плотности)*$N$4+LOOKUP($N$3,температуры,плотности)*(1-1/(1+(Y$6-$N$3)/($N$3-$A22)))/LOOKUP($A22,температуры,плотности) -> 2.292087206 | Z22: =LOOKUP($N$3,температуры,плотности)/(1+(Z$6-$N$3)/($N$3-$A22))/LOOKUP(Z$6,температуры,плотности)*$N$4+LOOKUP($N$3,температуры,плотности)*(1-1/(1+(Z$6-$N$3)/($N$3-$A22)))/LOOKUP($A22,температуры,плотности) -> 2.319438642 | AA22: =LOOKUP($N$3,температуры,плотности)/(1+(AA$6-$N$3)/($N$3-$A22))/LOOKUP(AA$6,температуры,плотности)*$N$4+LOOKUP($N$3,температуры,плотности)*(1-1/(1+(AA$6-$N$3)/($N$3-$A22)))/LOOKUP($A22,температуры,плотности) -> 2.348006442 | AB22: =LOOKUP($N$3,температуры,плотности)/(1+(AB$6-$N$3)/($N$3-$A22))/LOOKUP(AB$6,температуры,плотности)*$N$4+LOOKUP($N$3,температуры,плотности)*(1-1/(1+(AB$6-$N$3)/($N$3-$A22)))/LOOKUP($A22,температуры,плотности) -> 2.37787354 | AC22: =LOOKUP($N$3,температуры,плотности)/(1+(AC$6-$N$3)/($N$3-$A22))/LOOKUP(AC$6,температуры,плотности)*$N$4+LOOKUP($N$3,температуры,плотности)*(1-1/(1+(AC$6-$N$3)/($N$3-$A22)))/LOOKUP($A22,температуры,плотности) -> 2.409130584 | AI22: 23 | AJ22: 0.99755
A23: 4 | B23: =LOOKUP($N$3,температуры,плотности)/(1+(B$6-$N$3)/($N$3-$A23))/LOOKUP(B$6,температуры,плотности)*$N$4+LOOKUP($N$3,температуры,плотности)*(1-1/(1+(B$6-$N$3)/($N$3-$A23)))/LOOKUP($A23,температуры,плотности) -> 1.912250935 | C23: =LOOKUP($N$3,температуры,плотности)/(1+(C$6-$N$3)/($N$3-$A23))/LOOKUP(C$6,температуры,плотности)*$N$4+LOOKUP($N$3,температуры,плотности)*(1-1/(1+(C$6-$N$3)/($N$3-$A23)))/LOOKUP($A23,температуры,плотности) -> 1.924570227 | D23: =LOOKUP($N$3,температуры,плотности)/(1+(D$6-$N$3)/($N$3-$A23))/LOOKUP(D$6,температуры,плотности)*$N$4+LOOKUP($N$3,температуры,плотности)*(1-1/(1+(D$6-$N$3)/($N$3-$A23)))/LOOKUP($A23,температуры,плотности) -> 1.937247541 | E23: =LOOKUP($N$3,температуры,плотности)/(1+(E$6-$N$3)/($N$3-$A23))/LOOKUP(E$6,температуры,плотности)*$N$4+LOOKUP($N$3,температуры,плотности)*(1-1/(1+(E$6-$N$3)/($N$3-$A23)))/LOOKUP($A23,температуры,плотности) -> 1.950298671 | F23: =LOOKUP($N$3,температуры,плотности)/(1+(F$6-$N$3)/($N$3-$A23))/LOOKUP(F$6,температуры,плотности)*$N$4+LOOKUP($N$3,температуры,плотности)*(1-1/(1+(F$6-$N$3)/($N$3-$A23)))/LOOKUP($A23,температуры,плотности) -> 1.963740354 | G23: =LOOKUP($N$3,температуры,плотности)/(1+(G$6-$N$3)/($N$3-$A23))/LOOKUP(G$6,температуры,плотности)*$N$4+LOOKUP($N$3,температуры,плотности)*(1-1/(1+(G$6-$N$3)/($N$3-$A23)))/LOOKUP($A23,температуры,плотности) -> 1.97759034 | H23: =LOOKUP($N$3,температуры,плотности)/(1+(H$6-$N$3)/($N$3-$A23))/LOOKUP(H$6,температуры,плотности)*$N$4+LOOKUP($N$3,температуры,плотности)*(1-1/(1+(H$6-$N$3)/($N$3-$A23)))/LOOKUP($A23,температуры,плотности) -> 1.991934775 | I23: =LOOKUP($N$3,температуры,плотности)/(1+(I$6-$N$3)/($N$3-$A23))/LOOKUP(I$6,температуры,плотности)*$N$4+LOOKUP($N$3,температуры,плотности)*(1-1/(1+(I$6-$N$3)/($N$3-$A23)))/LOOKUP($A23,температуры,плотности) -> 2.00672832 | J23: =LOOKUP($N$3,температуры,плотности)/(1+(J$6-$N$3)/($N$3-$A23))/LOOKUP(J$6,температуры,плотности)*$N$4+LOOKUP($N$3,температуры,плотности)*(1-1/(1+(J$6-$N$3)/($N$3-$A23)))/LOOKUP($A23,температуры,плотности) -> 2.021992358 | K23: =LOOKUP($N$3,температуры,плотности)/(1+(K$6-$N$3)/($N$3-$A23))/LOOKUP(K$6,температуры,плотности)*$N$4+LOOKUP($N$3,температуры,плотности)*(1-1/(1+(K$6-$N$3)/($N$3-$A23)))/LOOKUP($A23,температуры,плотности) -> 2.037749654 | L23: =LOOKUP($N$3,температуры,плотности)/(1+(L$6-$N$3)/($N$3-$A23))/LOOKUP(L$6,температуры,плотности)*$N$4+LOOKUP($N$3,температуры,плотности)*(1-1/(1+(L$6-$N$3)/($N$3-$A23)))/LOOKUP($A23,температуры,плотности) -> 2.054024466 | M23: =LOOKUP($N$3,температуры,плотности)/(1+(M$6-$N$3)/($N$3-$A23))/LOOKUP(M$6,температуры,плотности)*$N$4+LOOKUP($N$3,температуры,плотности)*(1-1/(1+(M$6-$N$3)/($N$3-$A23)))/LOOKUP($A23,температуры,плотности) -> 2.070842667 | N23: =LOOKUP($N$3,температуры,плотности)/(1+(N$6-$N$3)/($N$3-$A23))/LOOKUP(N$6,температуры,плотности)*$N$4+LOOKUP($N$3,температуры,плотности)*(1-1/(1+(N$6-$N$3)/($N$3-$A23)))/LOOKUP($A23,температуры,плотности) -> 2.088305545 | O23: =LOOKUP($N$3,температуры,плотности)/(1+(O$6-$N$3)/($N$3-$A23))/LOOKUP(O$6,температуры,плотности)*$N$4+LOOKUP($N$3,температуры,плотности)*(1-1/(1+(O$6-$N$3)/($N$3-$A23)))/LOOKUP($A23,температуры,плотности) -> 2.106371354 | P23: =LOOKUP($N$3,температуры,плотности)/(1+(P$6-$N$3)/($N$3-$A23))/LOOKUP(P$6,температуры,плотности)*$N$4+LOOKUP($N$3,температуры,плотности)*(1-1/(1+(P$6-$N$3)/($N$3-$A23)))/LOOKUP($A23,температуры,плотности) -> 2.124995739 | Q23: =LOOKUP($N$3,температуры,плотности)/(1+(Q$6-$N$3)/($N$3-$A23))/LOOKUP(Q$6,температуры,плотности)*$N$4+LOOKUP($N$3,температуры,плотности)*(1-1/(1+(Q$6-$N$3)/($N$3-$A23)))/LOOKUP($A23,температуры,плотности) -> 2.144286234 | R23: =LOOKUP($N$3,температуры,плотности)/(1+(R$6-$N$3)/($N$3-$A23))/LOOKUP(R$6,температуры,плотности)*$N$4+LOOKUP($N$3,температуры,плотности)*(1-1/(1+(R$6-$N$3)/($N$3-$A23)))/LOOKUP($A23,температуры,плотности) -> 2.164357849 | S23: =LOOKUP($N$3,температуры,плотности)/(1+(S$6-$N$3)/($N$3-$A23))/LOOKUP(S$6,температуры,плотности)*$N$4+LOOKUP($N$3,температуры,плотности)*(1-1/(1+(S$6-$N$3)/($N$3-$A23)))/LOOKUP($A23,температуры,плотности) -> 2.185173672 | T23: =LOOKUP($N$3,температуры,плотности)/(1+(T$6-$N$3)/($N$3-$A23))/LOOKUP(T$6,температуры,плотности)*$N$4+LOOKUP($N$3,температуры,плотности)*(1-1/(1+(T$6-$N$3)/($N$3-$A23)))/LOOKUP($A23,температуры,плотности) -> 2.206775827 | U23: =LOOKUP($N$3,температуры,плотности)/(1+(U$6-$N$3)/($N$3-$A23))/LOOKUP(U$6,температуры,плотности)*$N$4+LOOKUP($N$3,температуры,плотности)*(1-1/(1+(U$6-$N$3)/($N$3-$A23)))/LOOKUP($A23,температуры,плотности) -> 2.229209677 | V23: =LOOKUP($N$3,температуры,плотности)/(1+(V$6-$N$3)/($N$3-$A23))/LOOKUP(V$6,температуры,плотности)*$N$4+LOOKUP($N$3,температуры,плотности)*(1-1/(1+(V$6-$N$3)/($N$3-$A23)))/LOOKUP($A23,температуры,плотности) -> 2.252524145 | W23: =LOOKUP($N$3,температуры,плотности)/(1+(W$6-$N$3)/($N$3-$A23))/LOOKUP(W$6,температуры,плотности)*$N$4+LOOKUP($N$3,температуры,плотности)*(1-1/(1+(W$6-$N$3)/($N$3-$A23)))/LOOKUP($A23,температуры,плотности) -> 2.276772066 | X23: =LOOKUP($N$3,температуры,плотности)/(1+(X$6-$N$3)/($N$3-$A23))/LOOKUP(X$6,температуры,плотности)*$N$4+LOOKUP($N$3,температуры,плотности)*(1-1/(1+(X$6-$N$3)/($N$3-$A23)))/LOOKUP($A23,температуры,плотности) -> 2.302098375 | Y23: =LOOKUP($N$3,температуры,плотности)/(1+(Y$6-$N$3)/($N$3-$A23))/LOOKUP(Y$6,температуры,плотности)*$N$4+LOOKUP($N$3,температуры,плотности)*(1-1/(1+(Y$6-$N$3)/($N$3-$A23)))/LOOKUP($A23,температуры,плотности) -> 2.328480682 | Z23: =LOOKUP($N$3,температуры,плотности)/(1+(Z$6-$N$3)/($N$3-$A23))/LOOKUP(Z$6,температуры,плотности)*$N$4+LOOKUP($N$3,температуры,плотности)*(1-1/(1+(Z$6-$N$3)/($N$3-$A23)))/LOOKUP($A23,температуры,плотности) -> 2.35598639 | AA23: =LOOKUP($N$3,температуры,плотности)/(1+(AA$6-$N$3)/($N$3-$A23))/LOOKUP(AA$6,температуры,плотности)*$N$4+LOOKUP($N$3,температуры,плотности)*(1-1/(1+(AA$6-$N$3)/($N$3-$A23)))/LOOKUP($A23,температуры,плотности) -> 2.384688765 | AB23: =LOOKUP($N$3,температуры,плотности)/(1+(AB$6-$N$3)/($N$3-$A23))/LOOKUP(AB$6,температуры,плотности)*$N$4+LOOKUP($N$3,температуры,плотности)*(1-1/(1+(AB$6-$N$3)/($N$3-$A23)))/LOOKUP($A23,температуры,плотности) -> 2.414667583 | AC23: =LOOKUP($N$3,температуры,плотности)/(1+(AC$6-$N$3)/($N$3-$A23))/LOOKUP(AC$6,температуры,плотности)*$N$4+LOOKUP($N$3,температуры,плотности)*(1-1/(1+(AC$6-$N$3)/($N$3-$A23)))/LOOKUP($A23,температуры,плотности) -> 2.446009872 | AI23: 24 | AJ23: 0.9973
AI24: 25 | AJ24: 0.99705
N25: то же, в % от 20 холодная, 75 горячая | AI25: 26 | AJ25: 0.9968
B26: 75 | C26: 74 | D26: 73 | E26: 72 | F26: 71 | G26: 70 | H26: 69 | I26: 68 | J26: 67 | K26: 66 | L26: 65 | M26: 64 | N26: 63 | O26: 62 | P26: 61 | Q26: 60 | R26: 59 | S26: 58 | T26: 57 | U26: 56 | V26: 55 | W26: 54 | X26: 53 | Y26: 52 | Z26: 51 | AA26: 50 | AB26: 49 | AC26: 48 | AI26: 27 | AJ26: 0.9965
A27: 20 | B27: =B7/$B$7% -> 100 | C27: =C7/$B$7% -> 100.3885313 | D27: 100.7917469 | E27: 101.210494 | F27: 101.6456863 | G27: 102.0983102 | H27: 102.5710938 | I27: 103.0635977 | J27: 103.5770806 | K27: 104.1129107 | L27: 104.6725777 | M27: 105.2577068 | N27: 105.8719544 | O27: 106.5154715 | P27: 107.1884321 | Q27: 107.8950655 | R27: 108.6400259 | S27: 109.4242163 | T27: 110.2508175 | U27: 111.1233636 | V27: 112.0457927 | W27: 113.0225064 | X27: 114.060864 | Y27: 115.1641396 | Z27: 116.3386153 | AA27: 117.5914113 | AB27: 118.9306296 | AC27: 120.3655297 | AI27: 28 | AJ27: 0.9962
A28: 19 | B28: =B8/$B$7% -> 103.9081474 | C28: 104.357381 | D28: 104.8232798 | E28: 105.3067869 | F28: 105.8089183 | G28: 106.3307694 | H28: 106.8754764 | I28: 107.442441 | J28: 108.0330542 | K28: 108.6488255 | L28: 109.2913956 | M28: 109.962551 | N28: 110.6664454 | O28: 111.4031021 | P28: 112.1725562 | Q28: 112.9795737 | R28: 113.8293866 | S28: 114.7228049 | T28: 115.663271 | U28: 116.6545996 | V28: 117.7010291 | W28: 118.8072825 | X28: 119.9814623 | Y28: 121.2268284 | Z28: 122.5500545 | AA28: 123.9586753 | AB28: 125.4612304 | AC28: 127.067437 | AI28: 29 | AJ28: 0.99595
A29: 18 | B29: 107.6791723 | C29: 108.1844916 | D29: 108.7082169 | E29: 109.2513707 | F29: 109.8150527 | G29: 110.4004472 | H29: 111.0110651 | I29: 111.6461359 | J29: 112.3071566 | K29: 112.9957492 | L29: 113.7136734 | M29: 114.4628421 | N29: 115.2478533 | O29: 116.068573 | P29: 116.9248659 | Q29: 117.8219677 | R29: 118.765613 | S29: 119.7564693 | T29: 120.798168 | U29: 121.894723 | V29: 123.0505821 | W29: 124.2706872 | X29: 125.5637457 | Y29: 126.9328934 | Z29: 128.3850477 | AA29: 129.9279902 | AB29: 131.570507 | AC29: 133.3225553 | AI29: 30 | AJ29: 0.9957
A30: 17 | B30: 111.3201673 | C30: 111.877323 | D30: 112.4544116 | E30: 113.0525204 | F30: 113.6728171 | G30: 114.3165575 | H30: 114.9875979 | I30: 115.6849853 | J30: 116.4103003 | K30: 117.1652527 | L30: 117.9516949 | M30: 118.7716367 | N30: 119.6300747 | O30: 120.5266948 | P30: 121.4611666 | Q30: 122.4391391 | R30: 123.466786 | S30: 124.544594 | T30: 125.6763251 | U30: 126.8661271 | V30: 128.1185846 | W30: 129.4387777 | X30: 130.835907 | Y30: 132.3129024 | Z30: 133.8768107 | AA30: 135.5355332 | AB30: 137.2979584 | AC30: 139.1741223 | AI30: 31 | AJ30: 0.99535
A31: 16 | B31: 114.837744 | C31: 115.4428206 | D31: 116.0691662 | E31: 116.7179201 | F31: 117.3903044 | G31: 118.0876319 | H31: 118.8140781 | I31: 119.5684995 | J31: 120.3525414 | K31: 121.1679812 | L31: 122.016741 | M31: 122.9009032 | N31: 123.8258236 | O31: 124.7909902 | P31: 125.7958589 | Q31: 126.8464441 | R31: 127.9493048 | S31: 129.1047178 | T31: 130.3165282 | U31: 131.5889659 | V31: 132.9266943 | W31: 134.3348681 | X31: 135.8230915 | Y31: 137.3940267 | Z31: 139.0547634 | AA31: 140.8132253 | AB31: 142.6782962 | AC31: 144.6599708 | AI31: 32 | AJ31: 0.995
A32: 15 | B32: 118.2445757 | C32: 118.8939395 | D32: 119.5657368 | E32: 120.2611482 | F32: 120.9814389 | G32: 121.7279656 | H32: 122.5051998 | I32: 123.3118016 | J32: 124.1494653 | K32: 125.0200178 | L32: 125.9254325 | M32: 126.8678436 | N32: 127.8529319 | O32: 128.8799738 | P32: 129.9481978 | Q32: 131.0639426 | R32: 132.234107 | S32: 133.4587358 | T32: 134.741719 | U32: 136.0873267 | V32: 137.5002554 | W32: 138.9856838 | X32: 140.5535465 | Y32: 142.2061942 | Z32: 143.950692 | AA32: 145.7949129 | AB32: 147.7476558 | AC32: 149.8187864 | AI32: 33 | AJ32: 0.9947
A33: 14 | B33: 121.5397093 | C33: 122.2300223 | D33: 122.9437808 | E33: 123.6821974 | F33: 124.4465699 | G33: 125.2382886 | H33: 126.0621001 | I33: 126.9164642 | J33: 127.8031102 | K33: 128.7239004 | L33: 129.6808432 | M33: 130.6761077 | N33: 131.7156695 | O33: 132.7985842 | P33: 133.9238426 | Q33: 135.0980728 | R33: 136.3284748 | S33: 137.614845 | T33: 138.9610882 | U33: 140.371481 | V33: 141.8507171 | W33: 143.4039598 | X33: 145.0414153 | Y33: 146.7650908 | Z33: 148.5819769 | AA33: 150.4998411 | AB33: 152.5273388 | AC33: 154.6741432 | AI33: 34 | AJ33: 0.9944
A34: 13 | B34: 124.7254043 | C34: 125.4535937 | D34: 126.2061045 | E34: 126.9841732 | F34: 127.7891217 | G34: 128.6223646 | H34: 129.4889052 | I34: 130.3870003 | J34: 131.3184028 | K34: 132.284998 | L34: 133.2888162 | M34: 134.3320468 | N34: 135.4209349 | O34: 136.5543077 | P34: 137.7309117 | Q34: 138.9576348 | R34: 140.241945 | S34: 141.5833794 | T34: 142.9858326 | U34: 144.4535618 | V34: 145.9912293 | W34: 147.6039526 | X34: 149.3021617 | Y34: 151.0874988 | Z34: 152.9668425 | AA34: 154.9478148 | AB34: 157.0388848 | AC34: 159.2494893 | AI34: 35 | AJ34: 0.99405
A35: 12 | B35: 127.8099689 | C35: 128.5731818 | D35: 129.3614696 | E35: 130.1760859 | F35: 131.0183694 | G35: 131.8897511 | H35: 132.7954742 | I35: 133.7335913 | J35: 134.7058693 | K35: 135.7142058 | L35: 136.7606419 | M35: 137.8473756 | N35: 138.9808983 | O35: 140.1598048 | P35: 141.3825928 | Q35: 142.6563842 | R35: 143.9888872 | S35: 145.3793713 | T35: 146.831702 | U35: 148.3500959 | V35: 149.939162 | W35: 151.6039483 | X35: 153.3550692 | Y35: 155.1937889 | Z35: 157.1268456 | AA35: 159.161687 | AB35: 161.3065657 | AC35: 163.5706516 | AI35: 36 | AJ35: 0.9937
A36: 11 | B36: 130.8011888 | C36: 131.5967696 | D36: 132.418069 | E36: 133.2663516 | F36: 134.1429665 | G36: 135.0493542 | H36: 135.9909831 | I36: 136.9657011 | J36: 137.9752807 | K36: 139.0216233 | L36: 140.1067713 | M36: 141.2329211 | N36: 142.406791 | O36: 143.6267402 | P36: 144.8910156 | Q36: 146.2069508 | R36: 147.5824701 | S36: 149.0165708 | T36: 150.5130735 | U36: 152.0761382 | V36: 153.7103031 | W36: 155.4205287 | X36: 157.2175819 | Y36: 159.1023412 | Z36: 161.0813843 | AA36: 163.1619639 | AB36: 165.3520959 | AC36: 167.6606628 | AI36: 37 | AJ36: 0.99335
A37: 10 | B37: 133.7003722 | C37: =C17/$B$7% -> 134.5258715 | D37: 135.3776347 | E37: 136.2569325 | F37: 137.165119 | G37: 138.1036384 | H37: 139.0781709 | I37: 140.08636 | J37: 141.1299771 | K37: 142.2109199 | L37: 143.3312244 | M37: 144.4930772 | N37: 145.7034058 | O37: 146.960333 | P37: 148.2618542 | Q37: 149.6154959 | R37: 151.0293772 | S37: 152.5022215 | T37: 154.037792 | U37: 155.6401798 | V37: 157.313839 | W37: 159.0636292 | X37: 160.9004439 | Y37: 162.824773 | Z37: 164.8430197 | AA37: 166.9622279 | AB37: 169.1901638 | AC37: 171.5354111 | AI37: 38 | AJ37: 0.993
A38: 9 | B38: 136.5117029 | C38: 137.3648484 | D38: 138.2447152 | E38: 139.1525755 | F38: 140.0897838 | G38: 141.0577833 | H38: 142.0624535 | I38: 143.101235 | J38: 144.175892 | K38: 145.2883125 | L38: 146.4405196 | M38: 147.6346832 | N38: 148.8779248 | O38: 150.1681309 | P38: 151.5030463 | Q38: 152.8903736 | R38: 154.3384092 | S38: 155.8456017 | T38: 157.4156483 | U38: 159.052561 | V38: 160.7607005 | W38: 162.5448151 | X38: 164.4159041 | Y38: 166.3740693 | Z38: 168.4255306 | AA38: 170.5771142 | AB38: 172.8363293 | AC38: 175.2114553 | AI38: 39 | AJ38: 0.9926
A39: 8 | B39: 139.2391143 | C39: 140.1177968 | D39: 141.0235789 | E39: 141.9577308 | F39: 142.9216032 | G39: 143.9166343 | H39: 144.948892 | I39: 146.0156153 | J39: 147.1185566 | K39: 148.2595892 | L39: 149.4407177 | M39: 150.6640902 | N39: 151.9370079 | O39: 153.2571226 | P39: 154.6219303 | Q39: 156.0392955 | R39: 157.5176762 | S39: 159.0552477 | T39: 160.6556339 | U39: 162.3227607 | V39: 164.0608879 | W39: 165.8746461 | X39: 167.7751225 | Y39: 169.762035 | Z39: 171.8414139 | AA39: 174.0198639 | AB39: 176.304634 | AC39: 178.7036982 | AI39: 40 | AJ39: 0.9922
A40: 7 | B40: 141.8920372 | C40: 142.7942662 | D40: 143.7239015 | E40: 144.6822077 | F40: 145.6705288 | G40: 146.6902938 | H40: 147.7477492 | I40: 148.8399348 | J40: 149.9685868 | K40: 151.1355594 | L40: 152.3428346 | M40: 153.5925334 | N40: 154.8921254 | O40: 156.2390291 | P40: 157.6304947 | Q40: 159.0745358 | R40: 160.5797584 | S40: 162.1440671 | T40: 163.7710069 | U40: 165.4644124 | V40: 167.2284375 | W40: 169.0675899 | X40: 170.9930309 | Y40: 173.0040996 | Z40: 175.1066342 | AA40: 177.307016 | AB40: 179.6122339 | AC40: 182.0299588 | AI40: 41 | AJ40: 0.9918
A41: 6 | B41: 144.4680637 | C41: 145.3920159 | D41: 146.3436174 | E41: 147.3241248 | F41: 148.334872 | G41: 149.3772764 | H41: 150.4577539 | I41: 151.5731472 | J41: 152.7251733 | K41: 153.9156639 | L41: 155.1465745 | M41: 156.4199959 | N41: 157.7435545 | O41: 159.114439 | P41: 160.5296567 | Q41: 161.9973598 | R41: 163.5262903 | S41: 165.1140857 | T41: 166.7642084 | U41: 168.4803981 | V41: 170.2666994 | W41: 172.1274944 | X41: 174.074007 | Y41: 176.1052049 | Z41: 178.2267336 | AA41: 180.444752 | AB41: 182.7659919 | AC41: 185.1978261 | AI41: 42 | AJ41: 0.9914
A42: 5 | B42: 146.967707 | C42: 147.9117023 | D42: 148.8835332 | E42: 149.884446 | F42: 150.9157625 | G42: 151.9788858 | H42: 153.0803928 | I42: 154.2169322 | J42: 155.3901989 | K42: 156.6019992 | L42: 157.8542596 | M42: 159.1490372 | N42: 160.4941064 | O42: 161.8864287 | P42: 163.3227731 | Q42: 164.8114204 | R42: 166.3612388 | S42: 167.9696027 | T42: 169.6398896 | U42: 171.375742 | V42: 173.1810936 | W42: 175.0601994 | X42: 177.0243368 | Y42: 179.0721104 | Z42: 181.2089747 | AA42: 183.440869 | AB42: 185.7742725 | AC42: 188.2162672 | AI42: 43 | AJ42: 0.991
A43: 4 | B43: 149.3969382 | C43: 150.3593979 | D43: 151.3498285 | E43: 152.369464 | F43: 153.4196119 | G43: 154.5016589 | H43: 155.6223354 | I43: 156.7780992 | J43: 157.9706208 | K43: 159.2016788 | L43: 160.4731683 | M43: 161.7871108 | N43: 163.1514194 | O43: 164.5628328 | P43: 166.0178856 | Q43: 167.5249791 | R43: 169.0930985 | S43: 170.7193601 | T43: 172.4070548 | U43: 174.1597268 | V43: 175.981198 | W43: 177.8755965 | X43: 179.8542452 | Y43: 181.9153951 | Z43: 184.0643122 | AA43: 186.3067203 | AB43: 188.648852 | AC43: 191.0975066 | AI43: 44 | AJ43: 0.9906
AI44: 45 | AJ44: 0.9902
AI45: 46 | AJ45: 0.9898
AI46: 47 | AJ46: 0.98935
AI47: 48 | AJ47: 0.9889
AI48: 49 | AJ48: 0.98845
AI49: 50 | AJ49: 0.988
AI50: 51 | AJ50: 0.98755
AI51: 52 | AJ51: 0.9871
AI52: 53 | AJ52: 0.98665
AI53: 54 | AJ53: 0.9862
AI54: 55 | AJ54: 0.9857
AI55: 56 | AJ55: 0.9852
AI56: 57 | AJ56: 0.9847
AI57: 58 | AJ57: 0.9842
AI58: 59 | AJ58: 0.9837
AI59: 60 | AJ59: 0.9832
AI60: 61 | AJ60: 0.98265
AI61: 62 | AJ61: 0.9821
AI62: 63 | AJ62: 0.9816
AI63: 64 | AJ63: 0.9811
AI64: 65 | AJ64: 0.98055
AI65: 66 | AJ65: 0.98
AI66: 67 | AJ66: 0.97945
AI67: 68 | AJ67: 0.9789
AI68: 69 | AJ68: 0.97835
AI69: 70 | AJ69: 0.9778
AI70: 71 | AJ70: 0.9772
AI71: 72 | AJ71: 0.9766
AI72: 73 | AJ72: 0.976
AI73: 74 | AJ73: 0.9754
AI74: 75 | AJ74: 0.9748
AI75: 76 | AJ75: 0.9742
AI76: 77 | AJ76: 0.9736
AI77: 78 | AJ77: 0.973
AI78: 79 | AJ78: 0.9724
AI79: 80 | AJ79: 0.9718
AI80: 81 | AJ80: 0.97115
AI81: 82 | AJ81: 0.9705
AI82: 83 | AJ82: 0.9699
AI83: 84 | AJ83: 0.9693
AI84: 85 | AJ84: 0.96855
AI85: 86 | AJ85: 0.9678
AI86: 87 | AJ86: 0.9672
AI87: 88 | AJ87: 0.9666
AI88: 89 | AJ88: 0.96595
AI89: 90 | AJ89: 0.9653
AI90: 91 | AJ90: 0.9646
AI91: 92 | AJ91: 0.9639
AI92: 93 | AJ92: 0.96325
AI93: 94 | AJ93: 0.9626
AI94: 95 | AJ94: 0.9619
AI95: 96 | AJ95: 0.9612
AI96: 97 | AJ96: 0.9605
AI97: 98 | AJ97: 0.9598
AI98: 99 | AJ98: 0.9591
AI99: 100 | AJ99: 0.9584
